Organisation Name (A),Department (B),Service Cat Label (C ),Purpose of Spend (D),Expenditure CIPFA Sub Group (E ),Supplier (F),Supplier Reference (G),Pay Date (H),Transaction Number (I),Net Amount (J),Grant to VCSE? (K),Charity Number (L),Card Transaction (M),Irrecoverable VAT (N/A)
Pendle Borough Council,Parks & Recreation Services,Supplies and Services,Expenditure : Materials,0002,FST CONSUMABLES LIMITED,A0000004,26/05/2022,PCO0326183,47.95,N,,N,N
Pendle Borough Council,Parks & Recreation Services,Premises Related Expense,Bldgs : R & M : Day To Day,2001,BARNES JB LIMITED,A0000202,12/05/2022,PCO0325844,23.68,N,,N,N
Pendle Borough Council,Parks & Recreation Services,Premises Related Expense,Grounds : R & M : Day to Day : Routine,2101,BARNES JB LIMITED,A0000202,05/05/2022,PCO0325791,17.41,N,,N,N
Pendle Borough Council,Parks & Recreation Services,Transport Related Expense,Tprt : Repairs : General,3105,BARNES JB LIMITED,A0000202,05/05/2022,PCO0325790,15.25,N,,N,N
Pendle Borough Council,Democratic & Legal Services,Premises Related Expense,Rents,2301,BARROWFORD PARISH COUNCIL,A0000239,12/05/2022,DAL0325940,50,N,,N,N
Pendle Borough Council,Parks & Recreation Services,Transport Related Expense,Diesel Oil,3202,BOC GASES LTD,A0000386,12/05/2022,PCO0325845,24.45,N,,N,N
Pendle Borough Council,Engineering & Special Projects,Capital Costs,Capital : Payments,CD14,CB EXCAVATORS LTD,A0000396,19/05/2022,HED0326134,3321.45,N,,N,N
Pendle Borough Council,Engineering & Special Projects,,Paid in the Year,PD03,CB EXCAVATORS LTD,A0000396,19/05/2022,HED0326133,26443.54,N,,N,N
Pendle Borough Council,Engineering & Special Projects,Premises Related Expense,Grounds : R & M : Day to Day : Routine,2101,GEORGE BOOCOCK DECORATORS LTD,A0000427,12/05/2022,HED0325988,76,N,,N,N
Pendle Borough Council,Operational Services,Supplies and Services,Other Expenses,4705,BARNOLDSWICK TOWN COUNCIL,A0000467,12/05/2022,OPS0325819,72.79,N,,N,N
Pendle Borough Council,Operational Services,Supplies and Services,Other Expenses,4705,BARNOLDSWICK TOWN COUNCIL,A0000467,12/05/2022,OPS0325819,1242.59,N,,N,N
Pendle Borough Council,Democratic & Legal Services,Premises Related Expense,Rents,2301,BRIERFIELD TOWN COUNCIL,A0000469,12/05/2022,DAL0325938,200,N,,N,N
Pendle Borough Council,Parks & Recreation Services,Supplies and Services,Expenditure : Materials,0002,BARROWFORD SAFE & LOCK & BB LOCKSMITHS,A0000510,12/05/2022,PCO0325843,3.75,N,,N,N
Pendle Borough Council,Parks & Recreation Services,Premises Related Expense,Bldgs : R & M : Day To Day,2001,BARROWFORD SAFE & LOCK & BB LOCKSMITHS,A0000510,12/05/2022,PCO0325843,6.67,N,,N,N
Pendle Borough Council,Parks & Recreation Services,Transport Related Expense,Hire of Plant,3502,R J CLOUGH & SON LTD,A0000567,26/05/2022,PCO0326196,46,N,,N,N
Pendle Borough Council,Parks & Recreation Services,Transport Related Expense,Hire of Plant,3502,R J CLOUGH & SON LTD,A0000567,19/05/2022,PCO0325976,567,N,,N,N
Pendle Borough Council,Operational Services,Transport Related Expense,Petrol,3201,CRAVEN VEHICLE SERVICES LIMITED,A0000572,12/05/2022,OPS0325866,366.67,N,,N,N
Pendle Borough Council,Planning & Building Control,Supplies and Services,Other Expenses,4705,MARTIN COLLINS JOINERY & GLAZING,A0000623,26/05/2022,PBC0326226,510,N,,N,N
Pendle Borough Council,Engineering & Special Projects,Transfer Payments,Storage & Homelessness prevention,6104,CAVALIER TAXIS,A0000638,19/05/2022,HED0326153,60,N,,N,N
Pendle Borough Council,Engineering & Special Projects,Transfer Payments,Storage & Homelessness prevention,6104,CAVALIER TAXIS,A0000638,12/05/2022,HED0325883,285,N,,N,N
Pendle Borough Council,Planning & Building Control,,Other Income : Non-VATable,9303,CAVALIER TAXIS,A0000638,12/05/2022,PBC0325982,66.5,N,,N,N
Pendle Borough Council,Property Services,Premises Related Expense,Bldgs : R & M : Day To Day,2001,J DRIVER LTD,A0000884,26/05/2022,EST0326239,548.01,N,,N,N
Pendle Borough Council,Property Services,Premises Related Expense,Bldgs : R & M : Day To Day,2001,J DRIVER LTD,A0000884,26/05/2022,EST0326239,432,N,,N,N
Pendle Borough Council,Property Services,Premises Related Expense,Bldgs : R & M : Day To Day,2001,J DRIVER LTD,A0000884,26/05/2022,EST0326239,1788.8,N,,N,N
Pendle Borough Council,Property Services,Premises Related Expense,Grounds : R & M : Day to Day : Routine,2101,J DRIVER LTD,A0000884,05/05/2022,EST0325797,126,N,,N,N
Pendle Borough Council,Property Services,Premises Related Expense,Grounds : R & M : Day to Day : Routine,2101,J DRIVER LTD,A0000884,05/05/2022,EST0325798,175,N,,N,N
Pendle Borough Council,Property Services,Premises Related Expense,Grounds : R & M : Day to Day : Routine,2101,J DRIVER LTD,A0000884,05/05/2022,EST0325797,247.95,N,,N,N
Pendle Borough Council,Property Services,Premises Related Expense,Grounds : R & M : Day to Day : Routine,2101,J DRIVER LTD,A0000884,05/05/2022,EST0325797,296.38,N,,N,N
Pendle Borough Council,Property Services,Supplies and Services,Consultants Fees,4401,J DRIVER LTD,A0000884,05/05/2022,EST0325797,351.04,N,,N,N
Pendle Borough Council,Property Services,Capital Costs,Capital : Payments,CD14,J DRIVER LTD,A0000884,05/05/2022,EST0325797,210,N,,N,N
Pendle Borough Council,Property Services,Capital Costs,Capital : Payments,CD14,J DRIVER LTD,A0000884,05/05/2022,EST0325797,193.67,N,,N,N
Pendle Borough Council,Property Services,Capital Costs,Capital : Payments,CD14,J DRIVER LTD,A0000884,05/05/2022,EST0325797,436.5,N,,N,N
Pendle Borough Council,Property Services,Capital Costs,#N/A,CD57,J DRIVER LTD,A0000884,26/05/2022,EST0326239,1873.21,N,,N,N
Pendle Borough Council,Operational Services,Premises Related Expense,Bldgs : R & M : Day To Day,2001,ENGINEERING & FOUNDRY SUPPLIES,A0001002,26/05/2022,OPS0326203,31.44,N,,N,N
Pendle Borough Council,Operational Services,,Stock : Purchases,PJ01,ENGINEERING & FOUNDRY SUPPLIES,A0001002,26/05/2022,OPS4006578,-60,N,,N,N
Pendle Borough Council,Operational Services,,Stock : Purchases,PJ01,ENGINEERING & FOUNDRY SUPPLIES,A0001002,19/05/2022,OPS0326089,10.95,N,,N,N
Pendle Borough Council,Operational Services,,Stock : Purchases,PJ01,ENGINEERING & FOUNDRY SUPPLIES,A0001002,26/05/2022,OPS0326213,10.95,N,,N,N
Pendle Borough Council,Operational Services,,Stock : Purchases,PJ01,ENGINEERING & FOUNDRY SUPPLIES,A0001002,12/05/2022,OPS0325814,21.9,N,,N,N
Pendle Borough Council,Operational Services,,Stock : Purchases,PJ01,ENGINEERING & FOUNDRY SUPPLIES,A0001002,12/05/2022,OPS0325815,31.17,N,,N,N
Pendle Borough Council,Operational Services,,Stock : Purchases,PJ01,ENGINEERING & FOUNDRY SUPPLIES,A0001002,19/05/2022,OPS0326088,43.66,N,,N,N
Pendle Borough Council,Operational Services,,Stock : Purchases,PJ01,ENGINEERING & FOUNDRY SUPPLIES,A0001002,19/05/2022,OPS0326087,44.64,N,,N,N
Pendle Borough Council,Operational Services,,Stock : Purchases,PJ01,ENGINEERING & FOUNDRY SUPPLIES,A0001002,12/05/2022,OPS0325810,45.85,N,,N,N
Pendle Borough Council,Operational Services,,Stock : Purchases,PJ01,ENGINEERING & FOUNDRY SUPPLIES,A0001002,12/05/2022,OPS0325811,108,N,,N,N
Pendle Borough Council,Operational Services,,Stock : Purchases,PJ01,ENGINEERING & FOUNDRY SUPPLIES,A0001002,12/05/2022,OPS0325812,108,N,,N,N
Pendle Borough Council,Operational Services,,Stock : Purchases,PJ01,ENGINEERING & FOUNDRY SUPPLIES,A0001002,19/05/2022,OPS0326090,134.76,N,,N,N
Pendle Borough Council,Operational Services,,Stock : Purchases,PJ01,ENGINEERING & FOUNDRY SUPPLIES,A0001002,12/05/2022,OPS0325813,252,N,,N,N
Pendle Borough Council,Operational Services,,Stock : Purchases,PJ01,ENGINEERING & FOUNDRY SUPPLIES,A0001002,26/05/2022,OPS0326212,420,N,,N,N
Pendle Borough Council,Operational Services,,Stock : Purchases,PJ01,ENGINEERING & FOUNDRY SUPPLIES,A0001002,26/05/2022,OPS0326211,614.28,N,,N,N
Pendle Borough Council,Democratic & Legal Services,Premises Related Expense,Rents,2301,EARBY COMMUNITY CENTRE,A0001015,12/05/2022,DAL0325947,50,N,,N,N
Pendle Borough Council,Democratic & Legal Services,Premises Related Expense,Rents,2301,EARBY & KELBROOK SR CITIZEN WELFARE,A0001024,12/05/2022,DAL0325945,200,N,700210,N,N
Pendle Borough Council,Parks & Recreation Services,Transport Related Expense,Tprt : Repairs : General,3105,GIBSONS GARDEN MACHINERY LTD,A0001201,26/05/2022,PCO0326184,248.2,N,,N,N
Pendle Borough Council,Parks & Recreation Services,Transport Related Expense,Tprt : Repairs : General,3105,GIBSONS GARDEN MACHINERY LTD,A0001201,26/05/2022,PCO0326184,203.8,N,,N,N
Pendle Borough Council,Parks & Recreation Services,Transport Related Expense,Tprt : Repairs : General,3105,GIBSONS GARDEN MACHINERY LTD,A0001201,12/05/2022,PCO0325850,24.52,N,,N,N
Pendle Borough Council,Parks & Recreation Services,Transport Related Expense,Tprt : Repairs : General,3105,GIBSONS GARDEN MACHINERY LTD,A0001201,12/05/2022,PCO0325851,42.72,N,,N,N
Pendle Borough Council,Parks & Recreation Services,Transport Related Expense,Tprt : Repairs : General,3105,GIBSONS GARDEN MACHINERY LTD,A0001201,12/05/2022,PCO0325849,20.8,N,,N,N
Pendle Borough Council,Parks & Recreation Services,Transport Related Expense,Tprt : Repairs : General,3105,JEWSON LIMITED,A0001323,26/05/2022,PCO0326187,22.2,N,,N,N
Pendle Borough Council,Operational Services,Supplies and Services,EFM Materials,4004,JEWSON LIMITED,A0001323,12/05/2022,OPS0325820,29.95,N,,N,N
Pendle Borough Council,Financial Services,Supplies and Services,Subscriptions & Donations,4706,CIPFA BUSINESS LIMITED,A0001556,05/05/2022,AAS0325799,5220,N,,N,N
Pendle Borough Council,Environmental Health Services,Supplies and Services,EFM Materials,4004,KILLGERM CHEMICALS LTD,A0001624,05/05/2022,ENV0325731,5.94,N,,N,N
Pendle Borough Council,Environmental Health Services,Supplies and Services,EFM Materials,4004,KILLGERM CHEMICALS LTD,A0001624,26/05/2022,ENV0326169,28.06,N,,N,N
Pendle Borough Council,Environmental Health Services,Supplies and Services,EFM Materials,4004,KILLGERM CHEMICALS LTD,A0001624,05/05/2022,ENV0325731,30,N,,N,N
Pendle Borough Council,Environmental Health Services,Supplies and Services,EFM Materials,4004,KILLGERM CHEMICALS LTD,A0001624,05/05/2022,ENV0325731,46.86,N,,N,N
Pendle Borough Council,Environmental Health Services,Supplies and Services,EFM Materials,4004,KILLGERM CHEMICALS LTD,A0001624,05/05/2022,ENV0325731,74.25,N,,N,N
Pendle Borough Council,Environmental Health Services,Supplies and Services,EFM Materials,4004,KILLGERM CHEMICALS LTD,A0001624,05/05/2022,ENV0325731,80,N,,N,N
Pendle Borough Council,Environmental Health Services,Supplies and Services,EFM Materials,4004,KILLGERM CHEMICALS LTD,A0001624,05/05/2022,ENV0325731,96,N,,N,N
Pendle Borough Council,Environmental Health Services,Supplies and Services,EFM Materials,4004,KILLGERM CHEMICALS LTD,A0001624,26/05/2022,ENV0326169,96.53,N,,N,N
Pendle Borough Council,Environmental Health Services,Supplies and Services,EFM Materials,4004,KILLGERM CHEMICALS LTD,A0001624,05/05/2022,ENV0325731,110,N,,N,N
Pendle Borough Council,Environmental Health Services,Supplies and Services,EFM Materials,4004,KILLGERM CHEMICALS LTD,A0001624,26/05/2022,ENV0326169,117.41,N,,N,N
Pendle Borough Council,Environmental Health Services,Supplies and Services,EFM Materials,4004,KILLGERM CHEMICALS LTD,A0001624,05/05/2022,ENV0325731,130.19,N,,N,N
Pendle Borough Council,Environmental Health Services,Supplies and Services,EFM Materials,4004,KILLGERM CHEMICALS LTD,A0001624,05/05/2022,ENV0325731,160,N,,N,N
Pendle Borough Council,Environmental Health Services,Supplies and Services,EFM Materials,4004,KILLGERM CHEMICALS LTD,A0001624,26/05/2022,ENV0326169,217.68,N,,N,N
Pendle Borough Council,Environmental Health Services,Supplies and Services,EFM Materials,4004,KILLGERM CHEMICALS LTD,A0001624,05/05/2022,ENV0325731,244.8,N,,N,N
Pendle Borough Council,Environmental Health Services,Supplies and Services,EFM Materials,4004,KILLGERM CHEMICALS LTD,A0001624,05/05/2022,ENV0325731,252,N,,N,N
Pendle Borough Council,Parks & Recreation Services,Supplies and Services,Expenditure : Materials,0002,LANLEE SUPPLIES LIMITED,A0001672,05/05/2022,PCO4006572,-20.3,N,,N,N
Pendle Borough Council,Parks & Recreation Services,Supplies and Services,Expenditure : Materials,0002,LANLEE SUPPLIES LIMITED,A0001672,05/05/2022,PCO0325794,49.16,N,,N,N
Pendle Borough Council,Parks & Recreation Services,Premises Related Expense,Grounds : R & M : Day to Day : Routine,2101,LANLEE SUPPLIES LIMITED,A0001672,26/05/2022,PCO0326189,117.61,N,,N,N
Pendle Borough Council,Parks & Recreation Services,Supplies and Services,Other Expenses,4705,LANLEE SUPPLIES LIMITED,A0001672,26/05/2022,PCO0326190,6.2,N,,N,N
Pendle Borough Council,Parks & Recreation Services,Transport Related Expense,Tprt : Repairs : General,3105,DICK LEIGH,A0001675,12/05/2022,PCO0325848,23.89,N,,N,N
Pendle Borough Council,Parks & Recreation Services,Transport Related Expense,Tprt : Repairs : General,3105,DICK LEIGH,A0001675,19/05/2022,PCO0325973,92.82,N,,N,N
Pendle Borough Council,Democratic & Legal Services,Premises Related Expense,Rents,2301,LANCASHIRE COUNTY COUNCIL,A0001690,12/05/2022,DAL0325963,50,N,,N,N
Pendle Borough Council,Environmental Health Services,Capital Costs,Ren Grant : 1996 Act,CH22,LANCASHIRE COUNTY COUNCIL,A0001690,05/05/2022,ENV0325754,3344,N,,N,N
Pendle Borough Council,Environmental Health Services,Capital Costs,Ren Grant : 1996 Act,CH22,LANCASHIRE COUNTY COUNCIL,A0001690,05/05/2022,ENV0325755,6677,N,,N,N
Pendle Borough Council,Chief Executives Policy Unit,Supplies and Services,Other Expenses,4705,LORD STREET CO PRIMARY SCHOOL,A0001702,12/05/2022,COR0325872,1467,N,,N,N
Pendle Borough Council,Operational Services,Premises Related Expense,Grounds : R & M : Day to Day : Routine,2101,JOHN MACADAM & SON (RESCUE) LTD,A0001846,19/05/2022,OPS0326103,120,N,,N,N
Pendle Borough Council,Operational Services,Premises Related Expense,Grounds : R & M : Day to Day : Routine,2101,JOHN MACADAM & SON (RESCUE) LTD,A0001846,12/05/2022,OPS0325821,120,N,,N,N
Pendle Borough Council,Operational Services,Premises Related Expense,Grounds : R & M : Day to Day : Routine,2101,JOHN MACADAM & SON (RESCUE) LTD,A0001846,12/05/2022,OPS0325823,120,N,,N,N
Pendle Borough Council,Operational Services,Premises Related Expense,Grounds : R & M : Day to Day : Routine,2101,JOHN MACADAM & SON (RESCUE) LTD,A0001846,12/05/2022,OPS0325867,120,N,,N,N
Pendle Borough Council,Operational Services,Premises Related Expense,Grounds : R & M : Day to Day : Routine,2101,JOHN MACADAM & SON (RESCUE) LTD,A0001846,12/05/2022,OPS0325822,120,N,,N,N
Pendle Borough Council,Parks & Recreation Services,Premises Related Expense,Bldgs : R & M : Day To Day,2001,OPTION HYGIENE LIMITED,A0002063,05/05/2022,PCO0325751,6.86,N,,N,N
Pendle Borough Council,Parks & Recreation Services,Premises Related Expense,Cleaning Materials,2605,OPTION HYGIENE LIMITED,A0002063,05/05/2022,PCO0325752,46.24,N,,N,N
Pendle Borough Council,Engineering & Special Projects,Premises Related Expense,Grounds : R & M : Day to Day : Routine,2101,PENDLE FROZEN FOODS LTD,A0002087,19/05/2022,HED0326138,96,N,,N,N
Pendle Borough Council,Operational Services,Premises Related Expense,Bldgs : R & M : Day To Day,2001,POWER PIPES (PENDLE) LIMITED,A0002089,12/05/2022,OPS0325816,47.48,N,,N,N
Pendle Borough Council,Engineering & Special Projects,Supplies and Services,Postages,4501,ROYAL MAIL GROUP LIMITED,A0002281,12/05/2022,HED0325971,75.78,N,,N,N
Pendle Borough Council,Democratic & Legal Services,Supplies and Services,Postages,4501,ROYAL MAIL GROUP LIMITED,A0002281,19/05/2022,DAL0326079,406.28,N,,N,N
Pendle Borough Council,Engineering & Special Projects,Supplies and Services,Postages,4501,ROYAL MAIL GROUP LIMITED,A0002281,19/05/2022,HED0326121,639.84,N,,N,N
Pendle Borough Council,Engineering & Special Projects,Supplies and Services,Postages,4501,ROYAL MAIL GROUP LIMITED,A0002281,12/05/2022,HED0325971,19.2,N,,N,N
Pendle Borough Council,Engineering & Special Projects,Supplies and Services,Postages,4501,ROYAL MAIL GROUP LIMITED,A0002281,19/05/2022,HED0326121,20.04,N,,N,N
Pendle Borough Council,Democratic & Legal Services,Supplies and Services,Postages,4501,ROYAL MAIL GROUP LIMITED,A0002281,19/05/2022,DAL0326078,4335.96,N,,N,N
Pendle Borough Council,Engineering & Special Projects,Supplies and Services,Postages,4501,ROYAL MAIL GROUP LIMITED,A0002281,12/05/2022,HED0325971,0.48,N,,N,N
Pendle Borough Council,Engineering & Special Projects,Supplies and Services,Postages,4501,ROYAL MAIL GROUP LIMITED,A0002281,19/05/2022,HED0326121,35.95,N,,N,N
Pendle Borough Council,Engineering & Special Projects,Supplies and Services,Postages,4501,ROYAL MAIL GROUP LIMITED,A0002281,19/05/2022,HED0326121,9.63,N,,N,N
Pendle Borough Council,Engineering & Special Projects,Supplies and Services,Postages,4501,ROYAL MAIL GROUP LIMITED,A0002281,12/05/2022,HED0325971,1.5,N,,N,N
Pendle Borough Council,Engineering & Special Projects,Supplies and Services,Postages,4501,ROYAL MAIL GROUP LIMITED,A0002281,12/05/2022,HED0325971,2.24,N,,N,N
Pendle Borough Council,Engineering & Special Projects,Supplies and Services,Postages,4501,ROYAL MAIL GROUP LIMITED,A0002281,19/05/2022,HED0326121,10.83,N,,N,N
Pendle Borough Council,Engineering & Special Projects,Supplies and Services,Postages,4501,ROYAL MAIL GROUP LIMITED,A0002281,19/05/2022,HED0326121,96.22,N,,N,N
Pendle Borough Council,Engineering & Special Projects,Supplies and Services,Postages,4501,ROYAL MAIL GROUP LIMITED,A0002281,12/05/2022,HED0325971,0.48,N,,N,N
Pendle Borough Council,Engineering & Special Projects,Supplies and Services,Postages,4501,ROYAL MAIL GROUP LIMITED,A0002281,19/05/2022,HED0326121,219.42,N,,N,N
Pendle Borough Council,Engineering & Special Projects,Supplies and Services,Postages,4501,ROYAL MAIL GROUP LIMITED,A0002281,19/05/2022,HED0326121,6.34,N,,N,N
Pendle Borough Council,Engineering & Special Projects,Supplies and Services,Postages,4501,ROYAL MAIL GROUP LIMITED,A0002281,19/05/2022,HED0326121,17.33,N,,N,N
Pendle Borough Council,Engineering & Special Projects,Supplies and Services,Postages,4501,ROYAL MAIL GROUP LIMITED,A0002281,12/05/2022,HED0325971,2.26,N,,N,N
Pendle Borough Council,Engineering & Special Projects,Supplies and Services,Postages,4501,ROYAL MAIL GROUP LIMITED,A0002281,12/05/2022,HED0325971,8.17,N,,N,N
Pendle Borough Council,Engineering & Special Projects,Supplies and Services,Postages,4501,ROYAL MAIL GROUP LIMITED,A0002281,19/05/2022,HED0326121,24.64,N,,N,N
Pendle Borough Council,Engineering & Special Projects,Supplies and Services,Postages,4501,ROYAL MAIL GROUP LIMITED,A0002281,19/05/2022,HED0326121,267.87,N,,N,N
Pendle Borough Council,Engineering & Special Projects,Supplies and Services,Postages,4501,ROYAL MAIL GROUP LIMITED,A0002281,12/05/2022,HED0325971,2.67,N,,N,N
Pendle Borough Council,Engineering & Special Projects,Supplies and Services,Postages,4501,ROYAL MAIL GROUP LIMITED,A0002281,19/05/2022,HED0326121,3.95,N,,N,N
Pendle Borough Council,Operational Services,Supplies and Services,Postages,4501,ROYAL MAIL GROUP LIMITED,A0002281,12/05/2022,OPS0325826,41.67,N,,N,N
Pendle Borough Council,Engineering & Special Projects,Supplies and Services,Postages,4501,ROYAL MAIL GROUP LIMITED,A0002281,19/05/2022,HED0326121,171.34,N,,N,N
Pendle Borough Council,Engineering & Special Projects,Supplies and Services,Other Expenses,4705,RIBBLE VALLEY BOROUGH COUNCIL,A0002290,26/05/2022,HED0326220,5000,N,,N,N
Pendle Borough Council,Environmental Health Services,Capital Costs,Ren Grant : 1996 Act,CH22,A  ROLLINSON & SON (BUILDERS) LTD,A0002297,19/05/2022,ENV0326049,15206.41,N,,N,N
Pendle Borough Council,Operational Services,Supplies and Services,Sub-Contractors,4007,ROSSENDALE PET CREMATORIUM,A0002345,19/05/2022,OPS0326097,35,N,,N,N
Pendle Borough Council,Operational Services,Supplies and Services,Sub-Contractors,4007,ROSSENDALE PET CREMATORIUM,A0002345,19/05/2022,OPS0326098,75,N,,N,N
Pendle Borough Council,Democratic & Legal Services,Supplies and Services,Printing & Stationery,4301,SHAW & SONS LTD,A0002414,05/05/2022,DAL0325737,25.45,N,,N,N
Pendle Borough Council,Operational Services,Agency Staff,Emp : Agency Wages,1004,STANLEY BROTHERS (TIPPERS) LTD,A0002422,26/05/2022,OPS0326209,128,N,,N,N
Pendle Borough Council,Operational Services,Agency Staff,Emp : Agency Wages,1004,STANLEY BROTHERS (TIPPERS) LTD,A0002422,19/05/2022,OPS0326096,144,N,,N,N
Pendle Borough Council,Operational Services,Transport Related Expense,Tprt : Annual Hire Charge,3601,STANLEY BROTHERS (TIPPERS) LTD,A0002422,19/05/2022,OPS0326095,2200,N,,N,N
Pendle Borough Council,Operational Services,Transport Related Expense,Tprt : Annual Hire Charge,3601,STANLEY BROTHERS (TIPPERS) LTD,A0002422,19/05/2022,OPS0326094,2530,N,,N,N
Pendle Borough Council,Property Services,Capital Costs,#N/A,CD57,STONE OAK LTD,A0002530,19/05/2022,EST0326114,4895,N,,N,N
Pendle Borough Council,Parks & Recreation Services,Transport Related Expense,Tprt : Repairs : General,3105,SPALDINGS (UK) LTD,A0002537,12/05/2022,PCO0325855,82.52,N,,N,N
Pendle Borough Council,Parks & Recreation Services,Premises Related Expense,Grounds : R & M : Day to Day : Routine,2101,ROBERTSON MEMORIALS,A0002590,26/05/2022,PCO0326197,45,N,,N,N
Pendle Borough Council,Environmental Health Services,Capital Costs,Ren Grant : 1996 Act,CH22,CLOSOMAT LIMITED,A0002685,19/05/2022,ENV0326048,4803,N,,N,N
Pendle Borough Council,Engineering & Special Projects,Supplies and Services,Mobile Phones,4508,EE LIMITED,A0004680,05/05/2022,HED4006571,-125,N,,N,N
Pendle Borough Council,Engineering & Special Projects,Supplies and Services,Mobile Phones,4508,EE LIMITED,A0004680,05/05/2022,HED0325777,310,N,,N,N
Pendle Borough Council,Engineering & Special Projects,Supplies and Services,Mobile Phones,4508,EE LIMITED,A0004680,05/05/2022,HED4006571,-125,N,,N,N
Pendle Borough Council,Engineering & Special Projects,Supplies and Services,Mobile Phones,4508,EE LIMITED,A0004680,05/05/2022,HED0325777,310,N,,N,N
Pendle Borough Council,Democratic & Legal Services,Premises Related Expense,Rents,2301,PARK  HIGH SCHOOL,A0005785,12/05/2022,DAL0325957,100,N,,N,N
Pendle Borough Council,Parks & Recreation Services,Transport Related Expense,Tprt : Repairs : General,3105,F G ROWLAND LIMITED,A0006489,05/05/2022,PCO0325792,1690,N,,N,N
Pendle Borough Council,Democratic & Legal Services,Indirect Employee Expenses,Staff Refreshments,1261,PHILIP SANDERSON,A0006611,12/05/2022,DAL0325835,21.04,N,,N,N
Pendle Borough Council,Democratic & Legal Services,Supplies and Services,Hospitality,4611,PHILIP SANDERSON,A0006611,12/05/2022,DAL0325835,21.05,N,,N,N
Pendle Borough Council,Democratic & Legal Services,Premises Related Expense,Rents,2301,ROUGHLEE VILLAGE CENTRE,A0007478,12/05/2022,DAL0325939,125,N,,N,N
Pendle Borough Council,Operational Services,Supplies and Services,Other Expenses,4705,POLICE & CRIME COMMISSIONER FOR LANCASHIRE,A0009816,12/05/2022,OPS0325827,896.06,N,,N,N
Pendle Borough Council,Democratic & Legal Services,Supplies and Services,Printing & Stationery,4301,NLA MEDIA ACCESS LIMITED,A0012340,19/05/2022,DAL0326060,2158,N,,N,N
Pendle Borough Council,Democratic & Legal Services,Premises Related Expense,Rents,2301,PENDLE LEISURE LIMITED,A0012961,19/05/2022,DAL0326076,350,N,XR43029,N,N
Pendle Borough Council,Democratic & Legal Services,Premises Related Expense,Rents,2301,PENDLE LEISURE LIMITED,A0012961,19/05/2022,DAL0326077,640,N,XR43029,N,N
Pendle Borough Council,Democratic & Legal Services,Premises Related Expense,Rents,2301,PENDLE LEISURE LIMITED,A0012961,12/05/2022,DAL0325930,1280,N,XR43029,N,N
Pendle Borough Council,Financial Services,Supplies and Services,Other Expenses,4705,PENDLE LEISURE LIMITED,A0012961,05/05/2022,AAS0325801,275000,N,XR43029,N,N
Pendle Borough Council,Financial Services,Supplies and Services,Other Expenses,4705,PENDLE LEISURE LIMITED,A0012961,05/05/2022,AAS0325800,718680.44,N,XR43029,N,N
Pendle Borough Council,Engineering & Special Projects,Capital Costs,Capital : Payments,CD14,PENDLE LEISURE LIMITED,A0012961,05/05/2022,HED0325780,19570.89,N,XR43029,N,N
Pendle Borough Council,Property Services,Capital Costs,Capital : Payments,cd14,LANDSCAPE ENGINEERING LTD,A0013135,19/05/2022,EST0326109,3350,N,,N,N
Pendle Borough Council,Operational Services,Supplies and Services,Sub-Contractors,4007,ORCHARD RECYCLING SERVICE,A0015803,12/05/2022,OPS0325858,1663.2,N,,N,N
Pendle Borough Council,Operational Services,Supplies and Services,Sub-Contractors,4007,ORCHARD RECYCLING SERVICE,A0015803,26/05/2022,OPS0326208,2317.7,N,,N,N
Pendle Borough Council,Operational Services,Supplies and Services,Sub-Contractors,4007,ORCHARD RECYCLING SERVICE,A0015803,05/05/2022,OPS0325738,2410.1,N,,N,N
Pendle Borough Council,Operational Services,Supplies and Services,Sub-Contractors,4007,ORCHARD RECYCLING SERVICE,A0015803,19/05/2022,OPS0326081,2487.1,N,,N,N
Pendle Borough Council,Engineering & Special Projects,Supplies and Services,Other Expenses,4705,MAYORESS CHARITY COMMITTEE,A0015905,19/05/2022,HED0326154,7177.66,N,,N,N
Pendle Borough Council,Environmental Health Services,Capital Costs,Ren Grant : 1996 Act,CH22,STANNAH LIFT SERVICES LTD,A0021089,19/05/2022,ENV0326046,5275,N,,N,N
Pendle Borough Council,Environmental Health Services,Capital Costs,Ren Grant : 1996 Act,CH22,STANNAH LIFT SERVICES LTD,A0021089,12/05/2022,ENV0325829,5284,N,,N,N
Pendle Borough Council,Operational Services,Premises Related Expense,Bldgs : R & M : Day To Day,2001,SAANRO INTERNATIONAL LTD,A0021480,12/05/2022,OPS0325864,689.19,N,,N,N
Pendle Borough Council,Environmental Health Services,Premises Related Expense,Bldgs : R & M : Abnormal,2002,DRAIN BUSTERS,A0021656,05/05/2022,ENV0325729,96,N,,N,N
Pendle Borough Council,Operational Services,Supplies and Services,Sub-Contractors,4007,ASPEN VALLEY KENNELS & CATTERY,A0022106,12/05/2022,OPS0325860,755,N,,N,N
Pendle Borough Council,Operational Services,Supplies and Services,Other Expenses,4705,ASPEN VALLEY KENNELS & CATTERY,A0022106,12/05/2022,OPS0325860,822.6,N,,N,N
Pendle Borough Council,Democratic & Legal Services,Premises Related Expense,Rents,2301,BARLEY VILLAGE HALL,A0023198,12/05/2022,DAL0325946,80,N,521016,N,N
Pendle Borough Council,Environmental Health Services,Supplies and Services,Other Expenses,4705,GRADKO INTERNATIONAL LTD,A0025806,19/05/2022,ENV0326043,201.6,N,,N,N
Pendle Borough Council,Parks & Recreation Services,Premises Related Expense,Bldgs : R & M : Day To Day,2001,BRITISH TELECOMMUNICATIONS PLC,A0040001,26/05/2022,PCO0326181,156.14,N,,N,N
Pendle Borough Council,Engineering & Special Projects,Premises Related Expense,Grounds : R & M : Day to Day : Routine,2101,LITE,A0040032,26/05/2022,HED0326237,144,N,,N,N
Pendle Borough Council,Engineering & Special Projects,Premises Related Expense,Grounds : R & M : Day to Day : Routine,2101,LITE,A0040032,12/05/2022,HED0325987,695,N,,N,N
Pendle Borough Council,Engineering & Special Projects,Supplies and Services,EFM : Photocopiers,4001,CANON (UK) LIMITED,A0040400,05/05/2022,HED0325776,19.84,N,,N,N
Pendle Borough Council,Financial Services,Supplies and Services,EFM : Photocopiers,4001,CANON (UK) LIMITED,A0040400,05/05/2022,AAS0325803,32.43,N,,N,N
Pendle Borough Council,Engineering & Special Projects,Supplies and Services,EFM : Photocopiers,4001,CANON (UK) LIMITED,A0040400,05/05/2022,HED0325771,527.6,N,,N,N
Pendle Borough Council,Engineering & Special Projects,Supplies and Services,EFM : Photocopiers,4001,CANON (UK) LIMITED,A0040400,05/05/2022,HED0325771,1.49,N,,N,N
Pendle Borough Council,Engineering & Special Projects,Supplies and Services,EFM : Photocopiers,4001,CANON (UK) LIMITED,A0040400,05/05/2022,HED0325776,9.78,N,,N,N
Pendle Borough Council,Operational Services,Supplies and Services,EFM : Photocopiers,4001,CANON (UK) LIMITED,A0040400,12/05/2022,OPS0325861,634.95,N,,N,N
Pendle Borough Council,Engineering & Special Projects,Supplies and Services,EFM : Photocopiers,4001,CANON (UK) LIMITED,A0040400,05/05/2022,HED0325774,33.4,N,,N,N
Pendle Borough Council,Engineering & Special Projects,Supplies and Services,EFM : Photocopiers,4001,CANON (UK) LIMITED,A0040400,05/05/2022,HED0325768,106.78,N,,N,N
Pendle Borough Council,Engineering & Special Projects,Supplies and Services,EFM : Photocopiers,4001,CANON (UK) LIMITED,A0040400,05/05/2022,HED0325769,179.92,N,,N,N
Pendle Borough Council,Engineering & Special Projects,Supplies and Services,EFM : Photocopiers,4001,CANON (UK) LIMITED,A0040400,05/05/2022,HED0325766,239.89,N,,N,N
Pendle Borough Council,Engineering & Special Projects,Supplies and Services,EFM : Photocopiers,4001,CANON (UK) LIMITED,A0040400,05/05/2022,HED0325770,274.29,N,,N,N
Pendle Borough Council,Planning & Building Control,Supplies and Services,EFM : Other Equipment,4003,CANON (UK) LIMITED,A0040400,12/05/2022,PBC0325981,5.19,N,,N,N
Pendle Borough Council,Planning & Building Control,Supplies and Services,EFM : Other Equipment,4003,CANON (UK) LIMITED,A0040400,12/05/2022,PBC0325980,31.73,N,,N,N
Pendle Borough Council,Engineering & Special Projects,Supplies and Services,Printing & Stationery,4301,CANON (UK) LIMITED,A0040400,05/05/2022,HED0325767,132.94,N,,N,N
Pendle Borough Council,Engineering & Special Projects,Supplies and Services,Printing & Stationery,4301,CANON (UK) LIMITED,A0040400,05/05/2022,HED0325772,6.41,N,,N,N
Pendle Borough Council,Engineering & Special Projects,Supplies and Services,Printing & Stationery,4301,CANON (UK) LIMITED,A0040400,05/05/2022,HED0325773,93.4,N,,N,N
Pendle Borough Council,Democratic & Legal Services,Premises Related Expense,Rents,2301,ROLLS ROYCE LEISURE,A0040636,12/05/2022,DAL0325951,400,N,,N,N
Pendle Borough Council,Parks & Recreation Services,Premises Related Expense,Grounds : R & M : Day to Day : Routine,2101,METROSIGNS 2000,A0040805,12/05/2022,PCO0325852,133.5,N,,N,N
Pendle Borough Council,Property Services,Premises Related Expense,Bldgs : R & M : Day To Day,2001,PENNINE FIRE & SAFETY LTD,A0040931,26/05/2022,EST0326265,119.3,N,,N,N
Pendle Borough Council,Democratic & Legal Services,Supplies and Services,Printing & Stationery,4301,CIVICA ELECTION SERVICES,A0041321,19/05/2022,DAL0326055,1030.4,N,,N,N
Pendle Borough Council,Democratic & Legal Services,Supplies and Services,Postages,4501,CIVICA ELECTION SERVICES,A0041321,19/05/2022,DAL0326055,1099.89,N,,N,N
Pendle Borough Council,Democratic & Legal Services,Premises Related Expense,Rents,2301,MARSDEN COMMUNITY PRIMARY SCHOOL,A0042343,12/05/2022,DAL0325958,100,N,,N,N
Pendle Borough Council,Environmental Health Services,Capital Costs,Ren Grant : 1996 Act,CH22,D J LINGARD & ASSOCIATES LTD,A0042727,19/05/2022,ENV0326045,360,N,,N,N
Pendle Borough Council,Parks & Recreation Services,Premises Related Expense,Grounds : R & M : Day to Day : Routine,2101,C & R WALNE ENGRAVERS,A0042734,19/05/2022,PCO0325970,40,N,,N,N
Pendle Borough Council,Democratic & Legal Services,Supplies and Services,Seminars etc All Costs,4601,LOCAL LAND CHARGES INSTITUTE,A0043069,12/05/2022,DAL0325874,130,N,,N,N
Pendle Borough Council,Operational Services,,Stock : Purchases,PJ01,PMC POLYTHENE LIMITED,A0043215,19/05/2022,OPS0326092,855,N,,N,N
Pendle Borough Council,Operational Services,,Stock : Purchases,PJ01,PMC POLYTHENE LIMITED,A0043215,26/05/2022,OPS0326214,2202.2,N,,N,N
Pendle Borough Council,Parks & Recreation Services,Supplies and Services,Expenditure : Materials,0002,GREENVALE PRODUCTS LIMITED,A0043407,26/05/2022,PCO0326185,15,N,,N,N
Pendle Borough Council,Parks & Recreation Services,Premises Related Expense,Grounds : R & M : Day to Day : Routine,2101,GREENVALE PRODUCTS LIMITED,A0043407,26/05/2022,PCO0326186,106.8,N,,N,N
Pendle Borough Council,Chief Executives Policy Unit,Supplies and Services,Mayoral Expenses,4614,FENCE GATE LTD,A0043865,12/05/2022,COR0325676,300,N,,N,N
Pendle Borough Council,Operational Services,Agency Costs,Refuse Collection DLO,5005,S M SHEPHERD BUILDING CONTRACTORS,A0044037,19/05/2022,OPS0326100,70,N,,N,N
Pendle Borough Council,Operational Services,Agency Costs,Refuse Collection DLO,5005,S M SHEPHERD BUILDING CONTRACTORS,A0044037,19/05/2022,OPS0326100,100,N,,N,N
Pendle Borough Council,Financial Services,,Interest,8011,BURNLEY BOROUGH COUNCIL,A0044855,05/05/2022,AAS0325786,1694,N,,N,N
Pendle Borough Council,Financial Services,,Interest on Transferred Debt,8113,BURNLEY BOROUGH COUNCIL,A0044855,05/05/2022,AAS0325786,8288.87,N,,N,N
Pendle Borough Council,Financial Services,,DME : Borough of Pendle,8401,BURNLEY BOROUGH COUNCIL,A0044855,05/05/2022,AAS0325786,62.58,N,,N,N
Pendle Borough Council,Chief Executives Policy Unit,Supplies and Services,Children`s holiday activities,4716,BODIES IN MOTION,A0045266,05/05/2022,COR0325543,2158,N,,N,N
Pendle Borough Council,Parks & Recreation Services,Supplies and Services,Expenditure : Materials,0002,LES HALMAN NURSERIES LTD,A0046578,26/05/2022,PCO0326217,2640.43,N,,N,N
Pendle Borough Council,Chief Executives Policy Unit,Supplies and Services,Other Expenses,4705,BARNOLDSWICK CHURCH OF ENGLAND PRIMARY SCHOOL,A0046953,05/05/2022,COR0325540,1500,N,,N,N
Pendle Borough Council,Engineering & Special Projects,Capital Costs,Capital : Environmental Surveys etc,cd08,BOWLAND ECOLOGY LIMITED,A0047425,26/05/2022,HED0326238,440,N,,N,N
Pendle Borough Council,Parks & Recreation Services,Premises Related Expense,Grounds : R & M : Day to Day : Routine,2101,LOOP PUBLISHING LTD,A0047429,05/05/2022,PCO0325745,150,N,,N,N
Pendle Borough Council,Property Services,Supplies and Services,Publicity & advertisement,4704,LOOP PUBLISHING LTD,A0047429,26/05/2022,EST0326242,175,N,,N,N
Pendle Borough Council,Engineering & Special Projects,Premises Related Expense,Grounds : R & M : Day to Day : Routine,2101,ISAAC BUTTERWORTH LTD,A0048337,19/05/2022,HED0326137,310,N,,N,N
Pendle Borough Council,Democratic & Legal Services,Premises Related Expense,Rents,2301,NEW LIFE CHRISTIAN CENTRE,A0048955,12/05/2022,DAL0325953,120,N,1051832,N,N
Pendle Borough Council,Planning & Building Control,Supplies and Services,EFM : Other Equipment,4003,VIP SYSTEM LIMITED,A0050529,26/05/2022,PBC0326221,64.64,N,,N,N
Pendle Borough Council,Planning & Building Control,Supplies and Services,EFM : Other Equipment,4003,VIP SYSTEM LIMITED,A0050529,26/05/2022,PBC0326221,168.42,N,,N,N
Pendle Borough Council,Planning & Building Control,Supplies and Services,EFM : Other Equipment,4003,VIP SYSTEM LIMITED,A0050529,26/05/2022,PBC0326221,875.64,N,,N,N
Pendle Borough Council,Planning & Building Control,Supplies and Services,EFM : Other Equipment,4003,VIP SYSTEM LIMITED,A0050529,26/05/2022,PBC0326221,810.66,N,,N,N
Pendle Borough Council,Planning & Building Control,Supplies and Services,EFM : Other Equipment,4003,VIP SYSTEM LIMITED,A0050529,26/05/2022,PBC0326221,540.44,N,,N,N
Pendle Borough Council,Parks & Recreation Services,Transport Related Expense,Tprt : Repairs : General,3105,ROSSENDALE VULCANISING (SALES LTD),A0051239,19/05/2022,PCO0325977,25,N,,N,N
Pendle Borough Council,Parks & Recreation Services,Transport Related Expense,Tprt : Repairs : General,3105,ROSSENDALE VULCANISING (SALES LTD),A0051239,19/05/2022,PCO0325977,15,N,,N,N
Pendle Borough Council,Parks & Recreation Services,Transport Related Expense,Tyres,3204,ROSSENDALE VULCANISING (SALES LTD),A0051239,19/05/2022,PCO0325978,97,N,,N,N
Pendle Borough Council,Parks & Recreation Services,Transport Related Expense,Tyres,3204,ROSSENDALE VULCANISING (SALES LTD),A0051239,19/05/2022,PCO0325978,97,N,,N,N
Pendle Borough Council,Engineering & Special Projects,Supplies and Services,Planning Appeals,4415,TTHC LTD,A0051506,19/05/2022,HED0326120,1950,N,,N,N
Pendle Borough Council,Democratic & Legal Services,Premises Related Expense,Rents,2301,LIBERATA UK LTD,A0051618,12/05/2022,DAL0325964,200,N,,N,N
Pendle Borough Council,Financial Services,Premises Related Expense,Rents,2301,LIBERATA UK LTD,A0051618,12/05/2022,AAS0326032,490.1,N,,N,N
Pendle Borough Council,Operational Services,Supplies and Services,Miscellaneous : Other,4707,LIBERATA UK LTD,A0051618,19/05/2022,OPS0326117,2700.14,N,,N,N
Pendle Borough Council,Operational Services,Agency Costs,Liberata,5301,LIBERATA UK LTD,A0051618,12/05/2022,OPS0325828,9384.91,N,,N,N
Pendle Borough Council,Financial Services,Agency Costs,Liberata,5301,LIBERATA UK LTD,A0051618,12/05/2022,AAS0326031,2000,N,,N,N
Pendle Borough Council,Financial Services,Agency Costs,Liberata,5301,LIBERATA UK LTD,A0051618,12/05/2022,AAS0326033,3926.09,N,,N,N
Pendle Borough Council,Financial Services,Agency Costs,#N/A,5303,LIBERATA UK LTD,A0051618,19/05/2022,AAS0326156,39535.66,N,,N,N
Pendle Borough Council,Engineering & Special Projects,Capital Costs,Capital: Design Fees,CD53,LIBERATA UK LTD,A0051618,26/05/2022,HED0326218,3947.83,N,,N,N
Pendle Borough Council,Engineering & Special Projects,Capital Costs,Capital: Design Fees,CD53,LIBERATA UK LTD,A0051618,26/05/2022,HED0326219,3947.83,N,,N,N
Pendle Borough Council,Human Resources,Supplies and Services,Other Expenses,4705,FIDELITI LIMITED,A0052058,05/05/2022,PER0325764,2.7,N,,N,N
Pendle Borough Council,Democratic & Legal Services,Premises Related Expense,Rents,2301,INDEPENDENT METHODIST CHURCH,A0052318,12/05/2022,DAL0325931,300,N,,N,N
Pendle Borough Council,Engineering & Special Projects,Capital Costs,Capital : Payments,CD14,MONKS CONTRACTORS LIMITED,A0053900,19/05/2022,HED0326135,22909.2,N,,N,N
Pendle Borough Council,Parks & Recreation Services,Transport Related Expense,Tprt : Repairs : General,3105,FLEET STREET GARAGE LIMITED,A0054291,26/05/2022,PCO0326182,40,N,,N,N
Pendle Borough Council,Financial Services,Supplies and Services,Consultants Fees,4401,LINK TREASURY SERVICES LIMITED,A0055209,12/05/2022,AAS0326034,4125,N,,N,N
Pendle Borough Council,Chief Executives Policy Unit,Supplies and Services,Other Expenses,4705,SS J FISHER & T MORE CATHOLIC,A0055594,19/05/2022,COR0326053,300,N,,N,N
Pendle Borough Council,Chief Executives Policy Unit,Supplies and Services,Other Expenses,4705,SS J FISHER & T MORE CATHOLIC,A0055594,12/05/2022,COR0325672,841.45,N,,N,N
Pendle Borough Council,Engineering & Special Projects,Supplies and Services,Seminars etc All Costs,4601,ROYAL TOWN PLANNING INSTITUTE,A0055984,19/05/2022,HED0326124,85,N,,N,N
Pendle Borough Council,Engineering & Special Projects,Supplies and Services,Seminars etc All Costs,4601,ROYAL TOWN PLANNING INSTITUTE,A0055984,19/05/2022,HED0326125,85,N,,N,N
Pendle Borough Council,Engineering & Special Projects,Supplies and Services,Seminars etc All Costs,4601,ROYAL TOWN PLANNING INSTITUTE,A0055984,19/05/2022,HED0326126,85,N,,N,N
Pendle Borough Council,Engineering & Special Projects,Supplies and Services,Seminars etc All Costs,4601,ROYAL TOWN PLANNING INSTITUTE,A0055984,19/05/2022,HED0326129,85,N,,N,N
Pendle Borough Council,Engineering & Special Projects,Supplies and Services,Seminars etc All Costs,4601,ROYAL TOWN PLANNING INSTITUTE,A0055984,19/05/2022,HED0326131,102,N,,N,N
Pendle Borough Council,Engineering & Special Projects,Supplies and Services,Seminars etc All Costs,4601,ROYAL TOWN PLANNING INSTITUTE,A0055984,19/05/2022,HED0326122,170,N,,N,N
Pendle Borough Council,Engineering & Special Projects,Supplies and Services,Seminars etc All Costs,4601,ROYAL TOWN PLANNING INSTITUTE,A0055984,19/05/2022,HED0326123,170,N,,N,N
Pendle Borough Council,Engineering & Special Projects,Supplies and Services,Seminars etc All Costs,4601,ROYAL TOWN PLANNING INSTITUTE,A0055984,19/05/2022,HED0326127,170,N,,N,N
Pendle Borough Council,Engineering & Special Projects,Supplies and Services,Seminars etc All Costs,4601,ROYAL TOWN PLANNING INSTITUTE,A0055984,19/05/2022,HED0326130,170,N,,N,N
Pendle Borough Council,Engineering & Special Projects,Supplies and Services,Seminars etc All Costs,4601,ROYAL TOWN PLANNING INSTITUTE,A0055984,19/05/2022,HED0326128,255,N,,N,N
Pendle Borough Council,Operational Services,Capital Costs,Capital : Payments,CD14,DP STRUCTURES LIMITED,A0056114,19/05/2022,OPS0326082,45000,N,,N,N
Pendle Borough Council,Parks & Recreation Services,Premises Related Expense,Grounds : R & M : Day to Day : Routine,2101,A BINNS & CO,A0057121,19/05/2022,PCO0325968,120,N,,N,N
Pendle Borough Council,Property Services,Premises Related Expense,Gas,2202,BRITISH GAS,A0057202,12/05/2022,EST0326018,16.22,N,,N,N
Pendle Borough Council,Democratic & Legal Services,Supplies and Services,Printing & Stationery,4301,CIVICA UK LIMITED,A0057595,19/05/2022,DAL0326054,2269.2,N,,N,N
Pendle Borough Council,Democratic & Legal Services,Supplies and Services,Postages,4501,CIVICA UK LIMITED,A0057595,19/05/2022,DAL0326054,22633.8,N,,N,N
Pendle Borough Council,Operational Services,Premises Related Expense,Bldgs : R & M : Day To Day,2001,P LEE WASTE OIL LIMTED,A0058412,12/05/2022,OPS0325868,820,N,,N,N
Pendle Borough Council,Operational Services,Transport Related Expense,Tprt : Repairs : General,3105,UNITED UTILITIES,A0059246,19/05/2022,OPS0326102,19.38,N,,N,N
Pendle Borough Council,Operational Services,Transport Related Expense,Tprt : Repairs : General,3105,UNITED UTILITIES,A0059246,12/05/2022,OPS0325862,23.45,N,,N,N
Pendle Borough Council,Operational Services,Transport Related Expense,Tprt : Repairs : General,3105,UNITED UTILITIES,A0059246,19/05/2022,OPS0326102,22.78,N,,N,N
Pendle Borough Council,Operational Services,Transport Related Expense,Tprt : Repairs : General,3105,UNITED UTILITIES,A0059246,12/05/2022,OPS0325862,46.89,N,,N,N
Pendle Borough Council,Engineering & Special Projects,Agency Costs,Lancashire C C,5102,NSL LIMITED,A0059256,12/05/2022,HED0325873,2001.43,N,,N,N
Pendle Borough Council,Engineering & Special Projects,Agency Costs,Lancashire C C,5102,NSL LIMITED,A0059256,12/05/2022,HED0325870,2101.53,N,,N,N
Pendle Borough Council,Planning & Building Control,Supplies and Services,Adverts : Statutory Notice,4702,NATIONAL WORLD PUBLISHING LTD,A0059640,26/05/2022,PBC0326198,218.7,N,,N,N
Pendle Borough Council,Engineering & Special Projects,Supplies and Services,Adverts : Statutory Notice,4702,NATIONAL WORLD PUBLISHING LTD,A0059640,19/05/2022,HED0326119,340.2,N,,N,N
Pendle Borough Council,Planning & Building Control,Supplies and Services,Adverts : Statutory Notice,4702,NATIONAL WORLD PUBLISHING LTD,A0059640,12/05/2022,PBC0325837,388.8,N,,N,N
Pendle Borough Council,Planning & Building Control,Supplies and Services,Adverts : Statutory Notice,4702,NATIONAL WORLD PUBLISHING LTD,A0059640,19/05/2022,PBC0326073,486,N,,N,N
Pendle Borough Council,Engineering & Special Projects,Transfer Payments,Accommodation ,6103,HILL VIEW (PRIVATE) HOTEL,A0059754,12/05/2022,HED0325965,13670,N,,N,N
Pendle Borough Council,Democratic & Legal Services,Premises Related Expense,Rents,2301,BRIGHT LITES UK LIMITED,A0059988,12/05/2022,DAL0325871,235,N,,N,N
Pendle Borough Council,Chief Executives Policy Unit,Supplies and Services,Other Expenses,4705,BRIGHT LITES UK LIMITED,A0059988,12/05/2022,COR0325675,175,N,,N,N
Pendle Borough Council,Operational Services,Supplies and Services,EFM Materials,4004,CONTAINER CARE SOLUTIONS LIMITED,A0061112,12/05/2022,OPS0325818,475,N,,N,N
Pendle Borough Council,Operational Services,Supplies and Services,EFM Materials,4004,CONTAINER CARE SOLUTIONS LIMITED,A0061112,26/05/2022,OPS0326216,1150,N,,N,N
Pendle Borough Council,Operational Services,Capital Costs,Capital : Payments,CD14,CONTAINER CARE SOLUTIONS LIMITED,A0061112,12/05/2022,OPS0325818,2990,N,,N,N
Pendle Borough Council,Democratic & Legal Services,Premises Related Expense,Rents,2301,NORTH VALLEY COMMUNITY CENTRE,A0062271,12/05/2022,DAL0325962,96,N,,N,N
Pendle Borough Council,Democratic & Legal Services,Supplies and Services,Uniforms,4202,REDACT - PERSONAL DATA,A0062864,19/05/2022,DAL0326056,30,N,,N,N
Pendle Borough Council,Democratic & Legal Services,Supplies and Services,Uniforms,4202,REDACT - PERSONAL DATA,A0062864,26/05/2022,DAL0326215,30,N,,N,N
Pendle Borough Council,Democratic & Legal Services,Supplies and Services,Mayoral Expenses,4614,REDACT - PERSONAL DATA,A0062864,19/05/2022,DAL0326056,5,N,,N,N
Pendle Borough Council,Democratic & Legal Services,Supplies and Services,Mayoral Expenses,4614,REDACT - PERSONAL DATA,A0062864,26/05/2022,DAL0326175,73.15,N,,N,N
Pendle Borough Council,Parks & Recreation Services,Supplies and Services,Expenditure : Materials,0002,BOUNCEBACK SAFETY SERVICES LTD,A0063002,05/05/2022,PCO0325743,1700,N,,N,N
Pendle Borough Council,Engineering & Special Projects,,Govt Grant,9130,SAFENET DOMESTIC ABUSE AND SUPPORT SERVICES LTD,A0065516,12/05/2022,HED0325879,15000,N,,N,N
Pendle Borough Council,Democratic & Legal Services,Premises Related Expense,Rents,2301,THE RAINHALL CENTRE,A0066193,12/05/2022,DAL0325961,350,N,,N,N
Pendle Borough Council,Operational Services,Supplies and Services,Other Expenses,4705,EVAC & CHAIR INTERNATIONAL LTD,A0066300,19/05/2022,OPS0326093,145,N,,N,N
Pendle Borough Council,Environmental Health Services,Capital Costs,Ren Grant : 1996 Act,CH22,ATM CONSTRUCTION LTD,A0066308,19/05/2022,ENV0326085,13940,N,,N,N
Pendle Borough Council,Human Resources,Transport Related Expense,Tprt : Annual Hire Charge,3601,LEX AUTOLEASE LIMITED,A0066530,05/05/2022,PER0325765,343.04,N,,N,N
Pendle Borough Council,Human Resources,Transport Related Expense,Tprt : Annual Hire Charge,3601,LEX AUTOLEASE LIMITED,A0066530,19/05/2022,PER0326067,343.04,N,,N,N
Pendle Borough Council,Property Services,Premises Related Expense,Bldgs : R & M : Day To Day,2001,SPEAKMAN CONTRACTORS LTD,A0066581,19/05/2022,EST0326112,1218.3,N,,N,N
Pendle Borough Council,Property Services,Premises Related Expense,Bldgs : R & M : Day To Day,2001,SPEAKMAN CONTRACTORS LTD,A0066581,19/05/2022,EST0326112,263.64,N,,N,N
Pendle Borough Council,Property Services,Premises Related Expense,Bldgs : R & M : Day To Day,2001,SPEAKMAN CONTRACTORS LTD,A0066581,19/05/2022,EST0326112,1730,N,,N,N
Pendle Borough Council,Property Services,Premises Related Expense,Bldgs : R & M : Day To Day,2001,SPEAKMAN CONTRACTORS LTD,A0066581,19/05/2022,EST0326112,115.81,N,,N,N
Pendle Borough Council,Property Services,Capital Costs,Capital : Payments,cd14,SPEAKMAN CONTRACTORS LTD,A0066581,19/05/2022,EST0326113,5400,N,,N,N
Pendle Borough Council,Engineering & Special Projects,Supplies and Services,Consultants Fees,4401,SIMON FENTON PARTNERSHIP LLP,A0067602,12/05/2022,HED0325986,5120,N,,N,N
Pendle Borough Council,Human Resources,Indirect Employee Expenses,Emp : Medical Expenses,1236,PEOPLE ASSET MANAGEMENT LIMITED,A0067613,26/05/2022,PER4006579,-110,N,,N,N
Pendle Borough Council,Human Resources,Indirect Employee Expenses,Emp : Medical Expenses,1236,PEOPLE ASSET MANAGEMENT LIMITED,A0067613,12/05/2022,PER0325881,65,N,,N,N
Pendle Borough Council,Human Resources,Indirect Employee Expenses,Emp : Medical Expenses,1236,PEOPLE ASSET MANAGEMENT LIMITED,A0067613,19/05/2022,PER0326066,110,N,,N,N
Pendle Borough Council,Human Resources,Indirect Employee Expenses,Emp : Medical Expenses,1236,PEOPLE ASSET MANAGEMENT LIMITED,A0067613,05/05/2022,PER0325762,375,N,,N,N
Pendle Borough Council,Human Resources,Indirect Employee Expenses,Emp : Medical Expenses,1236,PEOPLE ASSET MANAGEMENT LIMITED,A0067613,26/05/2022,PER0326222,467.25,N,,N,N
Pendle Borough Council,Operational Services,Supplies and Services,Other Expenses,4705,LIMPET LABELS UK LIMITED,A0067671,12/05/2022,OPS0325808,280.25,N,,N,N
Pendle Borough Council,Engineering & Special Projects,Supplies and Services,#N/A,4424,CHIPSIDE LTD,A0068587,19/05/2022,HED0326084,165.21,N,,N,N
Pendle Borough Council,Parks & Recreation Services,Supplies and Services,Expenditure : Materials,0002,SHERRIFF AMENITY - AGROVISTA UK LIMITED,A0068904,26/05/2022,PCO0326180,3200,N,,N,N
Pendle Borough Council,Financial Services,Supplies and Services,Subscriptions & Donations,4706,DISTRICT COUNCILS NETWORK,A0069643,05/05/2022,AAS0325804,2442,N,,N,N
Pendle Borough Council,Environmental Health Services,Supplies and Services,#N/A,4425,UNITED UTILITIES WATER PLC,A0072400,05/05/2022,ENV0325728,153.88,N,,N,N
Pendle Borough Council,Parks & Recreation Services,Premises Related Expense,Grounds : R & M : Day to Day : Routine,2101,BANNISTER HALL NURSERY,A0072526,12/05/2022,PCO0325842,97.95,N,,N,N
Pendle Borough Council,Operational Services,Supplies and Services,Sub-Contractors,4007,RENTOKIL INITIAL UK LIMITED,A0072816,19/05/2022,OPS0326116,147.24,N,,N,N
Pendle Borough Council,Operational Services,Supplies and Services,Sub-Contractors,4007,RENTOKIL INITIAL UK LIMITED,A0072816,12/05/2022,OPS0325825,5.24,N,,N,N
Pendle Borough Council,Operational Services,Supplies and Services,Sub-Contractors,4007,RENTOKIL INITIAL UK LIMITED,A0072816,19/05/2022,OPS0326115,5.24,N,,N,N
Pendle Borough Council,Operational Services,Supplies and Services,Sub-Contractors,4007,RENTOKIL INITIAL UK LIMITED,A0072816,19/05/2022,OPS0326116,24.4,N,,N,N
Pendle Borough Council,Parks & Recreation Services,Supplies and Services,Protective Clothing,4201,REACTEC LIMITED,A0072817,26/05/2022,PCO0326195,283.5,N,,N,N
Pendle Borough Council,Parks & Recreation Services,Premises Related Expense,Grounds : R & M : Day to Day : Routine,2101,FENLAND LEISURE PRODUCTS LIMITED,A0072950,26/05/2022,PCO0326194,48,N,,N,N
Pendle Borough Council,Operational Services,Transport Related Expense,Tprt : Repairs : General,3105,REDACT - PERSONAL DATA,A0075901,19/05/2022,OPS0326101,235.14,N,,N,N
Pendle Borough Council,Economic Development & Tourism,Capital Costs,Capital : Payments,CD14,REDACT - PERSONAL DATA,A0076866,12/05/2022,REG0325836,14.15,N,,N,N
Pendle Borough Council,Financial Services,Supplies and Services,Subscriptions & Donations,4706,VODAFONE LIMITED,A0076999,12/05/2022,AAS0326038,1057.89,N,,N,N
Pendle Borough Council,Engineering & Special Projects,Supplies and Services,Reference Books Acts,4304,THOMSON REUTERS PROFESSIONAL UK LIMITED,A0077400,12/05/2022,HED0325967,1046.66,N,,N,N
Pendle Borough Council,Democratic & Legal Services,Premises Related Expense,Rents,2301,FOULRIDGE PARISH COUNCIL,A0077715,12/05/2022,DAL0325936,100,N,,N,N
Pendle Borough Council,Operational Services,Supplies and Services,EFM : Other Equipment,4003,GLASDON UK LIMITED,A0078667,26/05/2022,OPS0326207,4248.99,N,,N,N
Pendle Borough Council,Engineering & Special Projects,Supplies and Services,Other Expenses,4705,QUALITY HOMES (NW) LIMITED,A0081253,26/05/2022,HED0326234,425,N,,N,N
Pendle Borough Council,Financial Services,,Precept Parish & T Council,0303,KELBROOK & SOUGH PARISH COUNCIL,A0081332,03/05/2022,AAS0325694,15250,N,,N,N
Pendle Borough Council,Democratic & Legal Services,Premises Related Expense,Rents,2301,KELBROOK AND SOUGH VILLAGE HALL,A0081339,12/05/2022,DAL0325948,100,N,1101005,N,N
Pendle Borough Council,Democratic & Legal Services,Premises Related Expense,Rents,2301,PETER BIRTWISTLE TRUST,A0081345,12/05/2022,DAL0325942,60,N,,N,N
Pendle Borough Council,Chief Executives Policy Unit,Supplies and Services,Children`s holiday activities,4716,POSITIVE ACTION IN THE COMMUNITY,A0081553,05/05/2022,COR0325740,188.2,N,1088536,N,N
Pendle Borough Council,Chief Executives Policy Unit,Supplies and Services,Children`s holiday activities,4716,POSITIVE ACTION IN THE COMMUNITY,A0081553,05/05/2022,COR0325741,6005,N,1088536,N,N
Pendle Borough Council,Engineering & Special Projects,,Govt Grant,9130,POSITIVE ACTION IN THE COMMUNITY,A0081553,12/05/2022,HED0325880,15000,N,1088536,N,N
Pendle Borough Council,Engineering & Special Projects,Supplies and Services,Other Expenses,4705,CALICO ENTERPRISE,A0082574,12/05/2022,HED0325882,76.62,N,,N,N
Pendle Borough Council,Engineering & Special Projects,Supplies and Services,Other Expenses,4705,CALICO ENTERPRISE,A0082574,12/05/2022,HED0325996,10250,N,,N,N
Pendle Borough Council,Operational Services,Transport Related Expense,Diesel Oil,3202,28CRAGGS ENERGY LIMITED,A0083617,12/05/2022,OPS0325809,7372.25,N,,N,N
Pendle Borough Council,Engineering & Special Projects,Supplies and Services,Consultants Fees,4401,DWF LLP,A0084385,05/05/2022,HED0325779,1500,N,,N,N
Pendle Borough Council,Engineering & Special Projects,Supplies and Services,Consultants Fees,4401,DWF LLP,A0084385,12/05/2022,HED0325992,1500,N,,N,N
Pendle Borough Council,Environmental Health Services,Premises Related Expense,Bldgs : R & M : Abnormal,2002,ELITE PLUMBING,A0084584,26/05/2022,ENV0326172,450,N,,N,N
Pendle Borough Council,Environmental Health Services,Premises Related Expense,Bldgs : R & M : Abnormal,2002,ELITE PLUMBING,A0084584,26/05/2022,ENV0326176,600,N,,N,N
Pendle Borough Council,Environmental Health Services,Premises Related Expense,Bldgs : R & M : Abnormal,2002,ELITE PLUMBING,A0084584,26/05/2022,ENV0326177,1850,N,,N,N
Pendle Borough Council,Environmental Health Services,Premises Related Expense,Bldgs : R & M : Abnormal,2002,ELITE PLUMBING,A0084584,05/05/2022,ENV0325730,2625.67,N,,N,N
Pendle Borough Council,Environmental Health Services,Capital Costs,Capital : Payments,CD14,ELITE PLUMBING,A0084584,05/05/2022,ENV0325735,1648,N,,N,N
Pendle Borough Council,Environmental Health Services,Capital Costs,Capital : Payments,CD14,ELITE PLUMBING,A0084584,19/05/2022,ENV0326040,1648,N,,N,N
Pendle Borough Council,Environmental Health Services,Capital Costs,Ren Grant : 1996 Act,CH22,ELITE PLUMBING,A0084584,26/05/2022,ENV0326167,9943,N,,N,N
Pendle Borough Council,Environmental Health Services,Capital Costs,Ren Grant : 1996 Act,CH22,ELITE PLUMBING,A0084584,26/05/2022,ENV0326168,10717,N,,N,N
Pendle Borough Council,Operational Services,,Stock : Purchases,PJ01,REDACT - PERSONAL DATA,A0084740,12/05/2022,OPS0325863,27.98,N,,N,N
Pendle Borough Council,Democratic & Legal Services,Premises Related Expense,Rents,2301,VICTORIA PARK PAVILION CIC,A0085028,12/05/2022,DAL0325954,150,N,,N,N
Pendle Borough Council,Chief Executives Policy Unit,Supplies and Services,Other Expenses,4705,REDACT - PERSONAL DATA,A0085472,05/05/2022,COR0325739,200,N,,N,N
Pendle Borough Council,Engineering & Special Projects,Premises Related Expense,Grounds : R & M : Day to Day : Routine,2101,KEVIN WILKINSON LANDSCAPES LTD,A0085660,12/05/2022,HED0325991,200,N,,N,N
Pendle Borough Council,Engineering & Special Projects,Supplies and Services,Consultants Fees,4401,PLANIT IE LIMITED,A0085851,05/05/2022,HED0325778,4120,N,,N,N
Pendle Borough Council,Engineering & Special Projects,Supplies and Services,Consultants Fees,4401,PLANNING JUNGLE LIMITED,A0087974,12/05/2022,HED0325979,300,N,,N,N
Pendle Borough Council,Chief Executives Policy Unit,Supplies and Services,Printing & Stationery,4301,PRINTDESIGNS LIMITED,A0088150,12/05/2022,REG0325674,54.5,N,,N,N
Pendle Borough Council,Engineering & Special Projects,Capital Costs,Capital : Payments,CD14,DAVID MORLEY ARCHITECTS,A0089106,12/05/2022,HED0325989,12560,N,,N,N
Pendle Borough Council,Democratic & Legal Services,Premises Related Expense,Rents,2301,MR HAFIZ MEHMOOD-UL-HASSAN,A0089260,12/05/2022,DAL0325937,30,N,,N,N
Pendle Borough Council,Democratic & Legal Services,Premises Related Expense,Rents,2301,SALTERFORTH VILLAGE HALL,A0089262,12/05/2022,DAL0325941,115,N,,N,N
Pendle Borough Council,Democratic & Legal Services,Premises Related Expense,Rents,2301,AGE UK LANCASHIRE,A0089644,12/05/2022,DAL0325929,50,N,1142294,N,N
Pendle Borough Council,Engineering & Special Projects,Supplies and Services,Consultants Fees,4401,BOWLAND TREE CONSULTANCY LTD,A0089938,26/05/2022,HED0326230,401.25,N,,N,N
Pendle Borough Council,Democratic & Legal Services,Premises Related Expense,Rents,2301,ST JOHN SOUTHWORTH FAMILY GROUP,A0089974,12/05/2022,DAL0325935,100,N,,N,N
Pendle Borough Council,Engineering & Special Projects,Capital Costs,Capital : Payments,CD14,O`CALLAGHAN LIMITED,A0090052,26/05/2022,HED0326235,36336.55,N,,N,N
Pendle Borough Council,Democratic & Legal Services,Premises Related Expense,Rents,2301,TRAWDEN FOREST COMMUNITY CENTRE,A0090063,12/05/2022,DAL0325934,100,N,1158193,N,N
Pendle Borough Council,Engineering & Special Projects,Supplies and Services,Consultants Fees,4401,WE LOVE CREATIVE LIMITED,A0090098,12/05/2022,HED0325993,400,N,,N,N
Pendle Borough Council,Engineering & Special Projects,Supplies and Services,Publicity & advertisement,4704,WE LOVE CREATIVE LIMITED,A0090098,12/05/2022,HED0325966,400,N,,N,N
Pendle Borough Council,Parks & Recreation Services,Transport Related Expense,Tprt : Repairs : General,3105,LANDSCAPE SUPPLY COMPANY,A0090209,26/05/2022,PCO0326188,107.54,N,,N,N
Pendle Borough Council,Parks & Recreation Services,Supplies and Services,Protective Clothing,4201,LANDSCAPE SUPPLY COMPANY,A0090209,26/05/2022,PCO0326188,357.55,N,,N,N
Pendle Borough Council,Democratic & Legal Services,Premises Related Expense,Rents,2301,HIGHERFORD METHODIST CHURCH,A0090259,12/05/2022,DAL0325943,125,N,,N,N
Pendle Borough Council,Democratic & Legal Services,Premises Related Expense,Rents,2301,BLACKO PRIMARY SCHOOL,A0090260,12/05/2022,DAL0325959,100,N,,N,N
Pendle Borough Council,Democratic & Legal Services,Premises Related Expense,Rents,2301,LANESHAWBRIDGE PRIMARY SCHOOL,A0090261,12/05/2022,DAL0325960,100,N,,N,N
Pendle Borough Council,Democratic & Legal Services,Premises Related Expense,Rents,2301,DIOCESE OF LEEDS ST JOSEPHS BARNOLDSWICK,A0090262,12/05/2022,DAL0325933,250,N,513063,N,N
Pendle Borough Council,Democratic & Legal Services,Premises Related Expense,Rents,2301,HOLY TRINITY CHURCH,A0090264,12/05/2022,DAL0325949,140,N,,N,N
Pendle Borough Council,Financial Services,Transport Related Expense,Diesel Oil,3202,FUELMATE LTD,A0090265,03/05/2022,AAS0326441,83.57,N,,N,N
Pendle Borough Council,Financial Services,Transport Related Expense,Diesel Oil,3202,FUELMATE LTD,A0090265,10/05/2022,AAS0326442,199.83,N,,N,N
Pendle Borough Council,Financial Services,Transport Related Expense,Diesel Oil,3202,FUELMATE LTD,A0090265,31/05/2022,AAS0326445,270.48,N,,N,N
Pendle Borough Council,Financial Services,Transport Related Expense,Diesel Oil,3202,FUELMATE LTD,A0090265,24/05/2022,AAS0326444,355.05,N,,N,N
Pendle Borough Council,Financial Services,Transport Related Expense,Diesel Oil,3202,FUELMATE LTD,A0090265,17/05/2022,AAS0326443,386.25,N,,N,N
Pendle Borough Council,Financial Services,Transport Related Expense,Diesel Oil,3202,FUELMATE LTD,A0090265,10/05/2022,AAS0326442,296.43,N,,N,N
Pendle Borough Council,Financial Services,Transport Related Expense,Diesel Oil,3202,FUELMATE LTD,A0090265,03/05/2022,AAS0326441,344.99,N,,N,N
Pendle Borough Council,Financial Services,Transport Related Expense,Diesel Oil,3202,FUELMATE LTD,A0090265,17/05/2022,AAS0326443,380.15,N,,N,N
Pendle Borough Council,Financial Services,Transport Related Expense,Diesel Oil,3202,FUELMATE LTD,A0090265,31/05/2022,AAS0326445,381.5,N,,N,N
Pendle Borough Council,Financial Services,Transport Related Expense,Diesel Oil,3202,FUELMATE LTD,A0090265,24/05/2022,AAS0326444,388.93,N,,N,N
Pendle Borough Council,Financial Services,Transport Related Expense,Diesel Oil,3202,FUELMATE LTD,A0090265,17/05/2022,AAS0326443,298.54,N,,N,N
Pendle Borough Council,Financial Services,Transport Related Expense,Diesel Oil,3202,FUELMATE LTD,A0090265,31/05/2022,AAS0326445,344.35,N,,N,N
Pendle Borough Council,Financial Services,Transport Related Expense,Diesel Oil,3202,FUELMATE LTD,A0090265,03/05/2022,AAS0326441,361.81,N,,N,N
Pendle Borough Council,Financial Services,Transport Related Expense,Diesel Oil,3202,FUELMATE LTD,A0090265,24/05/2022,AAS0326444,368.86,N,,N,N
Pendle Borough Council,Financial Services,Transport Related Expense,Diesel Oil,3202,FUELMATE LTD,A0090265,10/05/2022,AAS0326442,406.63,N,,N,N
Pendle Borough Council,Financial Services,Transport Related Expense,Diesel Oil,3202,FUELMATE LTD,A0090265,24/05/2022,AAS0326444,294.02,N,,N,N
Pendle Borough Council,Financial Services,Transport Related Expense,Diesel Oil,3202,FUELMATE LTD,A0090265,10/05/2022,AAS0326442,314.65,N,,N,N
Pendle Borough Council,Financial Services,Transport Related Expense,Diesel Oil,3202,FUELMATE LTD,A0090265,31/05/2022,AAS0326445,341.27,N,,N,N
Pendle Borough Council,Financial Services,Transport Related Expense,Diesel Oil,3202,FUELMATE LTD,A0090265,17/05/2022,AAS0326443,352.12,N,,N,N
Pendle Borough Council,Financial Services,Transport Related Expense,Diesel Oil,3202,FUELMATE LTD,A0090265,03/05/2022,AAS0326441,391.29,N,,N,N
Pendle Borough Council,Financial Services,Transport Related Expense,Diesel Oil,3202,FUELMATE LTD,A0090265,24/05/2022,AAS0326444,229.78,N,,N,N
Pendle Borough Council,Financial Services,Transport Related Expense,Diesel Oil,3202,FUELMATE LTD,A0090265,17/05/2022,AAS0326443,274.77,N,,N,N
Pendle Borough Council,Financial Services,Transport Related Expense,Diesel Oil,3202,FUELMATE LTD,A0090265,03/05/2022,AAS0326441,285.84,N,,N,N
Pendle Borough Council,Financial Services,Transport Related Expense,Diesel Oil,3202,FUELMATE LTD,A0090265,31/05/2022,AAS0326445,367.82,N,,N,N
Pendle Borough Council,Financial Services,Transport Related Expense,Diesel Oil,3202,FUELMATE LTD,A0090265,10/05/2022,AAS0326442,402.17,N,,N,N
Pendle Borough Council,Financial Services,Transport Related Expense,Diesel Oil,3202,FUELMATE LTD,A0090265,10/05/2022,AAS0326442,236.65,N,,N,N
Pendle Borough Council,Financial Services,Transport Related Expense,Diesel Oil,3202,FUELMATE LTD,A0090265,17/05/2022,AAS0326443,292.53,N,,N,N
Pendle Borough Council,Financial Services,Transport Related Expense,Diesel Oil,3202,FUELMATE LTD,A0090265,24/05/2022,AAS0326444,363.65,N,,N,N
Pendle Borough Council,Financial Services,Transport Related Expense,Diesel Oil,3202,FUELMATE LTD,A0090265,31/05/2022,AAS0326445,396.09,N,,N,N
Pendle Borough Council,Financial Services,Transport Related Expense,Diesel Oil,3202,FUELMATE LTD,A0090265,03/05/2022,AAS0326441,432.88,N,,N,N
Pendle Borough Council,Financial Services,Transport Related Expense,Diesel Oil,3202,FUELMATE LTD,A0090265,24/05/2022,AAS0326444,177.24,N,,N,N
Pendle Borough Council,Financial Services,Transport Related Expense,Diesel Oil,3202,FUELMATE LTD,A0090265,03/05/2022,AAS0326441,247.82,N,,N,N
Pendle Borough Council,Financial Services,Transport Related Expense,Diesel Oil,3202,FUELMATE LTD,A0090265,17/05/2022,AAS0326443,326.35,N,,N,N
Pendle Borough Council,Financial Services,Transport Related Expense,Diesel Oil,3202,FUELMATE LTD,A0090265,10/05/2022,AAS0326442,349.38,N,,N,N
Pendle Borough Council,Financial Services,Transport Related Expense,Diesel Oil,3202,FUELMATE LTD,A0090265,31/05/2022,AAS0326445,428.25,N,,N,N
Pendle Borough Council,Financial Services,Transport Related Expense,Diesel Oil,3202,FUELMATE LTD,A0090265,10/05/2022,AAS0326442,36.08,N,,N,N
Pendle Borough Council,Financial Services,Transport Related Expense,Diesel Oil,3202,FUELMATE LTD,A0090265,31/05/2022,AAS0326445,43.31,N,,N,N
Pendle Borough Council,Financial Services,Transport Related Expense,Diesel Oil,3202,FUELMATE LTD,A0090265,17/05/2022,AAS0326443,48.75,N,,N,N
Pendle Borough Council,Financial Services,Transport Related Expense,Diesel Oil,3202,FUELMATE LTD,A0090265,03/05/2022,AAS0326441,93.87,N,,N,N
Pendle Borough Council,Financial Services,Transport Related Expense,Diesel Oil,3202,FUELMATE LTD,A0090265,24/05/2022,AAS0326444,265.28,N,,N,N
Pendle Borough Council,Financial Services,Transport Related Expense,Diesel Oil,3202,FUELMATE LTD,A0090265,17/05/2022,AAS0326443,272.23,N,,N,N
Pendle Borough Council,Financial Services,Transport Related Expense,Diesel Oil,3202,FUELMATE LTD,A0090265,10/05/2022,AAS0326442,296.12,N,,N,N
Pendle Borough Council,Financial Services,Transport Related Expense,Diesel Oil,3202,FUELMATE LTD,A0090265,31/05/2022,AAS0326445,303.19,N,,N,N
Pendle Borough Council,Financial Services,Transport Related Expense,Diesel Oil,3202,FUELMATE LTD,A0090265,03/05/2022,AAS0326441,314.45,N,,N,N
Pendle Borough Council,Financial Services,Transport Related Expense,Diesel Oil,3202,FUELMATE LTD,A0090265,24/05/2022,AAS0326444,363.98,N,,N,N
Pendle Borough Council,Financial Services,Transport Related Expense,Diesel Oil,3202,FUELMATE LTD,A0090265,10/05/2022,AAS0326442,217.37,N,,N,N
Pendle Borough Council,Financial Services,Transport Related Expense,Diesel Oil,3202,FUELMATE LTD,A0090265,17/05/2022,AAS0326443,296.91,N,,N,N
Pendle Borough Council,Financial Services,Transport Related Expense,Diesel Oil,3202,FUELMATE LTD,A0090265,24/05/2022,AAS0326444,300.42,N,,N,N
Pendle Borough Council,Financial Services,Transport Related Expense,Diesel Oil,3202,FUELMATE LTD,A0090265,03/05/2022,AAS0326441,355.73,N,,N,N
Pendle Borough Council,Financial Services,Transport Related Expense,Diesel Oil,3202,FUELMATE LTD,A0090265,31/05/2022,AAS0326445,457.5,N,,N,N
Pendle Borough Council,Financial Services,Transport Related Expense,Diesel Oil,3202,FUELMATE LTD,A0090265,03/05/2022,AAS0326441,50.44,N,,N,N
Pendle Borough Council,Financial Services,Transport Related Expense,Diesel Oil,3202,FUELMATE LTD,A0090265,17/05/2022,AAS0326443,103.14,N,,N,N
Pendle Borough Council,Financial Services,Transport Related Expense,Diesel Oil,3202,FUELMATE LTD,A0090265,24/05/2022,AAS0326444,216.37,N,,N,N
Pendle Borough Council,Financial Services,Transport Related Expense,Diesel Oil,3202,FUELMATE LTD,A0090265,17/05/2022,AAS0326443,180.68,N,,N,N
Pendle Borough Council,Financial Services,Transport Related Expense,Diesel Oil,3202,FUELMATE LTD,A0090265,17/05/2022,AAS0326443,58.54,N,,N,N
Pendle Borough Council,Financial Services,Transport Related Expense,Diesel Oil,3202,FUELMATE LTD,A0090265,24/05/2022,AAS0326444,199.69,N,,N,N
Pendle Borough Council,Financial Services,Transport Related Expense,Diesel Oil,3202,FUELMATE LTD,A0090265,10/05/2022,AAS0326442,244.28,N,,N,N
Pendle Borough Council,Financial Services,Transport Related Expense,Diesel Oil,3202,FUELMATE LTD,A0090265,03/05/2022,AAS0326441,278.6,N,,N,N
Pendle Borough Council,Financial Services,Transport Related Expense,Diesel Oil,3202,FUELMATE LTD,A0090265,31/05/2022,AAS0326445,404.12,N,,N,N
Pendle Borough Council,Financial Services,Transport Related Expense,Diesel Oil,3202,FUELMATE LTD,A0090265,31/05/2022,AAS0326445,50.39,N,,N,N
Pendle Borough Council,Financial Services,Transport Related Expense,Diesel Oil,3202,FUELMATE LTD,A0090265,17/05/2022,AAS0326443,99.73,N,,N,N
Pendle Borough Council,Financial Services,Transport Related Expense,Diesel Oil,3202,FUELMATE LTD,A0090265,24/05/2022,AAS0326444,129.64,N,,N,N
Pendle Borough Council,Financial Services,Transport Related Expense,Diesel Oil,3202,FUELMATE LTD,A0090265,17/05/2022,AAS0326443,61.36,N,,N,N
Pendle Borough Council,Financial Services,Transport Related Expense,Diesel Oil,3202,FUELMATE LTD,A0090265,31/05/2022,AAS0326445,78.52,N,,N,N
Pendle Borough Council,Financial Services,Transport Related Expense,Diesel Oil,3202,FUELMATE LTD,A0090265,17/05/2022,AAS0326443,78.01,N,,N,N
Pendle Borough Council,Financial Services,Transport Related Expense,Diesel Oil,3202,FUELMATE LTD,A0090265,03/05/2022,AAS0326441,94.33,N,,N,N
Pendle Borough Council,Financial Services,Transport Related Expense,Diesel Oil,3202,FUELMATE LTD,A0090265,24/05/2022,AAS0326444,265.57,N,,N,N
Pendle Borough Council,Financial Services,Transport Related Expense,Diesel Oil,3202,FUELMATE LTD,A0090265,24/05/2022,AAS0326444,240.96,N,,N,N
Pendle Borough Council,Financial Services,Transport Related Expense,Diesel Oil,3202,FUELMATE LTD,A0090265,17/05/2022,AAS0326443,257.22,N,,N,N
Pendle Borough Council,Financial Services,Transport Related Expense,Diesel Oil,3202,FUELMATE LTD,A0090265,10/05/2022,AAS0326442,281.5,N,,N,N
Pendle Borough Council,Financial Services,Transport Related Expense,Diesel Oil,3202,FUELMATE LTD,A0090265,03/05/2022,AAS0326441,287.89,N,,N,N
Pendle Borough Council,Financial Services,Transport Related Expense,Diesel Oil,3202,FUELMATE LTD,A0090265,31/05/2022,AAS0326445,333.64,N,,N,N
Pendle Borough Council,Financial Services,Transport Related Expense,Diesel Oil,3202,FUELMATE LTD,A0090265,24/05/2022,AAS0326444,198.93,N,,N,N
Pendle Borough Council,Financial Services,Transport Related Expense,Diesel Oil,3202,FUELMATE LTD,A0090265,17/05/2022,AAS0326443,207.66,N,,N,N
Pendle Borough Council,Financial Services,Transport Related Expense,Diesel Oil,3202,FUELMATE LTD,A0090265,10/05/2022,AAS0326442,242.34,N,,N,N
Pendle Borough Council,Financial Services,Transport Related Expense,Diesel Oil,3202,FUELMATE LTD,A0090265,03/05/2022,AAS0326441,273.24,N,,N,N
Pendle Borough Council,Financial Services,Transport Related Expense,Diesel Oil,3202,FUELMATE LTD,A0090265,10/05/2022,AAS0326442,133.92,N,,N,N
Pendle Borough Council,Financial Services,Transport Related Expense,Diesel Oil,3202,FUELMATE LTD,A0090265,31/05/2022,AAS0326445,169.31,N,,N,N
Pendle Borough Council,Financial Services,Transport Related Expense,Diesel Oil,3202,FUELMATE LTD,A0090265,17/05/2022,AAS0326443,230.54,N,,N,N
Pendle Borough Council,Financial Services,Transport Related Expense,Diesel Oil,3202,FUELMATE LTD,A0090265,24/05/2022,AAS0326444,243.25,N,,N,N
Pendle Borough Council,Financial Services,Transport Related Expense,Diesel Oil,3202,FUELMATE LTD,A0090265,03/05/2022,AAS0326441,270.46,N,,N,N
Pendle Borough Council,Financial Services,Transport Related Expense,Diesel Oil,3202,FUELMATE LTD,A0090265,17/05/2022,AAS0326443,58.47,N,,N,N
Pendle Borough Council,Financial Services,Transport Related Expense,Diesel Oil,3202,FUELMATE LTD,A0090265,24/05/2022,AAS0326444,73.93,N,,N,N
Pendle Borough Council,Financial Services,Transport Related Expense,Diesel Oil,3202,FUELMATE LTD,A0090265,10/05/2022,AAS0326442,228.78,N,,N,N
Pendle Borough Council,Financial Services,Transport Related Expense,Diesel Oil,3202,FUELMATE LTD,A0090265,03/05/2022,AAS0326441,241.86,N,,N,N
Pendle Borough Council,Financial Services,Transport Related Expense,Diesel Oil,3202,FUELMATE LTD,A0090265,31/05/2022,AAS0326445,260.59,N,,N,N
Pendle Borough Council,Financial Services,Transport Related Expense,Diesel Oil,3202,FUELMATE LTD,A0090265,31/05/2022,AAS0326445,63.81,N,,N,N
Pendle Borough Council,Financial Services,Transport Related Expense,Diesel Oil,3202,FUELMATE LTD,A0090265,17/05/2022,AAS0326443,121.79,N,,N,N
Pendle Borough Council,Financial Services,Transport Related Expense,Diesel Oil,3202,FUELMATE LTD,A0090265,24/05/2022,AAS0326444,144.18,N,,N,N
Pendle Borough Council,Financial Services,Transport Related Expense,Diesel Oil,3202,FUELMATE LTD,A0090265,10/05/2022,AAS0326442,56.13,N,,N,N
Pendle Borough Council,Financial Services,Transport Related Expense,Diesel Oil,3202,FUELMATE LTD,A0090265,31/05/2022,AAS0326445,90.28,N,,N,N
Pendle Borough Council,Financial Services,Transport Related Expense,Diesel Oil,3202,FUELMATE LTD,A0090265,24/05/2022,AAS0326444,106.03,N,,N,N
Pendle Borough Council,Financial Services,Transport Related Expense,Diesel Oil,3202,FUELMATE LTD,A0090265,03/05/2022,AAS0326441,90.69,N,,N,N
Pendle Borough Council,Financial Services,Transport Related Expense,Diesel Oil,3202,FUELMATE LTD,A0090265,24/05/2022,AAS0326444,99.63,N,,N,N
Pendle Borough Council,Financial Services,Transport Related Expense,Diesel Oil,3202,FUELMATE LTD,A0090265,10/05/2022,AAS0326442,80.79,N,,N,N
Pendle Borough Council,Financial Services,Transport Related Expense,Diesel Oil,3202,FUELMATE LTD,A0090265,24/05/2022,AAS0326444,83.07,N,,N,N
Pendle Borough Council,Financial Services,Transport Related Expense,Diesel Oil,3202,FUELMATE LTD,A0090265,10/05/2022,AAS0326442,62.67,N,,N,N
Pendle Borough Council,Financial Services,Transport Related Expense,Diesel Oil,3202,FUELMATE LTD,A0090265,17/05/2022,AAS0326443,71.44,N,,N,N
Pendle Borough Council,Financial Services,Transport Related Expense,Diesel Oil,3202,FUELMATE LTD,A0090265,03/05/2022,AAS0326441,71.71,N,,N,N
Pendle Borough Council,Financial Services,Transport Related Expense,Diesel Oil,3202,FUELMATE LTD,A0090265,10/05/2022,AAS0326442,74.8,N,,N,N
Pendle Borough Council,Financial Services,Transport Related Expense,Diesel Oil,3202,FUELMATE LTD,A0090265,31/05/2022,AAS0326445,83.94,N,,N,N
Pendle Borough Council,Financial Services,Transport Related Expense,Diesel Oil,3202,FUELMATE LTD,A0090265,24/05/2022,AAS0326444,147.21,N,,N,N
Pendle Borough Council,Financial Services,Transport Related Expense,Diesel Oil,3202,FUELMATE LTD,A0090265,24/05/2022,AAS0326444,103.29,N,,N,N
Pendle Borough Council,Financial Services,Transport Related Expense,Diesel Oil,3202,FUELMATE LTD,A0090265,17/05/2022,AAS0326443,105.25,N,,N,N
Pendle Borough Council,Financial Services,Transport Related Expense,Diesel Oil,3202,FUELMATE LTD,A0090265,03/05/2022,AAS0326441,121.42,N,,N,N
Pendle Borough Council,Financial Services,Transport Related Expense,Diesel Oil,3202,FUELMATE LTD,A0090265,31/05/2022,AAS0326445,130.4,N,,N,N
Pendle Borough Council,Financial Services,Transport Related Expense,Diesel Oil,3202,FUELMATE LTD,A0090265,10/05/2022,AAS0326442,157.23,N,,N,N
Pendle Borough Council,Financial Services,Transport Related Expense,Diesel Oil,3202,FUELMATE LTD,A0090265,17/05/2022,AAS0326443,56.99,N,,N,N
Pendle Borough Council,Financial Services,Transport Related Expense,Diesel Oil,3202,FUELMATE LTD,A0090265,03/05/2022,AAS0326441,61.54,N,,N,N
Pendle Borough Council,Financial Services,Transport Related Expense,Diesel Oil,3202,FUELMATE LTD,A0090265,24/05/2022,AAS0326444,69.48,N,,N,N
Pendle Borough Council,Financial Services,Transport Related Expense,Diesel Oil,3202,FUELMATE LTD,A0090265,10/05/2022,AAS0326442,71.16,N,,N,N
Pendle Borough Council,Financial Services,Transport Related Expense,Diesel Oil,3202,FUELMATE LTD,A0090265,31/05/2022,AAS0326445,118.64,N,,N,N
Pendle Borough Council,Financial Services,Transport Related Expense,Diesel Oil,3202,FUELMATE LTD,A0090265,24/05/2022,AAS0326444,51.61,N,,N,N
Pendle Borough Council,Financial Services,Transport Related Expense,Diesel Oil,3202,FUELMATE LTD,A0090265,10/05/2022,AAS0326442,61.05,N,,N,N
Pendle Borough Council,Financial Services,Transport Related Expense,Diesel Oil,3202,FUELMATE LTD,A0090265,17/05/2022,AAS0326443,102.96,N,,N,N
Pendle Borough Council,Financial Services,Transport Related Expense,Diesel Oil,3202,FUELMATE LTD,A0090265,03/05/2022,AAS0326441,107.68,N,,N,N
Pendle Borough Council,Financial Services,Transport Related Expense,Diesel Oil,3202,FUELMATE LTD,A0090265,31/05/2022,AAS0326445,138.42,N,,N,N
Pendle Borough Council,Financial Services,Transport Related Expense,Diesel Oil,3202,FUELMATE LTD,A0090265,03/05/2022,AAS0326441,65.22,N,,N,N
Pendle Borough Council,Financial Services,Transport Related Expense,Diesel Oil,3202,FUELMATE LTD,A0090265,17/05/2022,AAS0326443,69.36,N,,N,N
Pendle Borough Council,Financial Services,Transport Related Expense,Diesel Oil,3202,FUELMATE LTD,A0090265,10/05/2022,AAS0326442,102.78,N,,N,N
Pendle Borough Council,Financial Services,Transport Related Expense,Diesel Oil,3202,FUELMATE LTD,A0090265,31/05/2022,AAS0326445,118.4,N,,N,N
Pendle Borough Council,Financial Services,Transport Related Expense,Diesel Oil,3202,FUELMATE LTD,A0090265,31/05/2022,AAS0326445,58.95,N,,N,N
Pendle Borough Council,Financial Services,Transport Related Expense,Diesel Oil,3202,FUELMATE LTD,A0090265,24/05/2022,AAS0326444,76.06,N,,N,N
Pendle Borough Council,Financial Services,Transport Related Expense,Diesel Oil,3202,FUELMATE LTD,A0090265,17/05/2022,AAS0326443,77.66,N,,N,N
Pendle Borough Council,Financial Services,Transport Related Expense,Diesel Oil,3202,FUELMATE LTD,A0090265,03/05/2022,AAS0326441,77.74,N,,N,N
Pendle Borough Council,Financial Services,Transport Related Expense,Diesel Oil,3202,FUELMATE LTD,A0090265,10/05/2022,AAS0326442,82.21,N,,N,N
Pendle Borough Council,Financial Services,Transport Related Expense,Diesel Oil,3202,FUELMATE LTD,A0090265,10/05/2022,AAS0326442,57.68,N,,N,N
Pendle Borough Council,Financial Services,Transport Related Expense,Diesel Oil,3202,FUELMATE LTD,A0090265,31/05/2022,AAS0326445,59.16,N,,N,N
Pendle Borough Council,Financial Services,Transport Related Expense,Diesel Oil,3202,FUELMATE LTD,A0090265,03/05/2022,AAS0326441,53.47,N,,N,N
Pendle Borough Council,Financial Services,Transport Related Expense,Diesel Oil,3202,FUELMATE LTD,A0090265,31/05/2022,AAS0326445,56.53,N,,N,N
Pendle Borough Council,Financial Services,Transport Related Expense,Diesel Oil,3202,FUELMATE LTD,A0090265,31/05/2022,AAS0326445,37.12,N,,N,N
Pendle Borough Council,Financial Services,Transport Related Expense,Diesel Oil,3202,FUELMATE LTD,A0090265,10/05/2022,AAS0326442,45.04,N,,N,N
Pendle Borough Council,Financial Services,Transport Related Expense,Diesel Oil,3202,FUELMATE LTD,A0090265,31/05/2022,AAS0326445,45.57,N,,N,N
Pendle Borough Council,Financial Services,Transport Related Expense,Diesel Oil,3202,FUELMATE LTD,A0090265,24/05/2022,AAS0326444,46.04,N,,N,N
Pendle Borough Council,Financial Services,Transport Related Expense,Diesel Oil,3202,FUELMATE LTD,A0090265,24/05/2022,AAS0326444,38.94,N,,N,N
Pendle Borough Council,Financial Services,Transport Related Expense,Diesel Oil,3202,FUELMATE LTD,A0090265,10/05/2022,AAS0326442,39.8,N,,N,N
Pendle Borough Council,Financial Services,Transport Related Expense,Diesel Oil,3202,FUELMATE LTD,A0090265,24/05/2022,AAS0326444,52.69,N,,N,N
Pendle Borough Council,Financial Services,Transport Related Expense,Diesel Oil,3202,FUELMATE LTD,A0090265,03/05/2022,AAS0326441,55.03,N,,N,N
Pendle Borough Council,Financial Services,Transport Related Expense,Diesel Oil,3202,FUELMATE LTD,A0090265,03/05/2022,AAS0326441,44.02,N,,N,N
Pendle Borough Council,Financial Services,Transport Related Expense,Diesel Oil,3202,FUELMATE LTD,A0090265,31/05/2022,AAS0326445,45.47,N,,N,N
Pendle Borough Council,Financial Services,Transport Related Expense,Diesel Oil,3202,FUELMATE LTD,A0090265,24/05/2022,AAS0326444,58.59,N,,N,N
Pendle Borough Council,Financial Services,Transport Related Expense,Diesel Oil,3202,FUELMATE LTD,A0090265,03/05/2022,AAS0326441,73.63,N,,N,N
Pendle Borough Council,Financial Services,Transport Related Expense,Diesel Oil,3202,FUELMATE LTD,A0090265,31/05/2022,AAS0326445,86.22,N,,N,N
Pendle Borough Council,Financial Services,Transport Related Expense,Diesel Oil,3202,FUELMATE LTD,A0090265,24/05/2022,AAS0326444,74.83,N,,N,N
Pendle Borough Council,Financial Services,Transport Related Expense,Diesel Oil,3202,FUELMATE LTD,A0090265,03/05/2022,AAS0326441,52.75,N,,N,N
Pendle Borough Council,Financial Services,Transport Related Expense,Diesel Oil,3202,FUELMATE LTD,A0090265,31/05/2022,AAS0326445,81.41,N,,N,N
Pendle Borough Council,Financial Services,Transport Related Expense,Diesel Oil,3202,FUELMATE LTD,A0090265,24/05/2022,AAS0326444,62.12,N,,N,N
Pendle Borough Council,Financial Services,Transport Related Expense,Diesel Oil,3202,FUELMATE LTD,A0090265,03/05/2022,AAS0326441,70.87,N,,N,N
Pendle Borough Council,Financial Services,Transport Related Expense,Diesel Oil,3202,FUELMATE LTD,A0090265,03/05/2022,AAS0326441,64.42,N,,N,N
Pendle Borough Council,Financial Services,Transport Related Expense,Diesel Oil,3202,FUELMATE LTD,A0090265,17/05/2022,AAS0326443,68.04,N,,N,N
Pendle Borough Council,Financial Services,Transport Related Expense,Diesel Oil,3202,FUELMATE LTD,A0090265,24/05/2022,AAS0326444,69.66,N,,N,N
Pendle Borough Council,Financial Services,Transport Related Expense,Diesel Oil,3202,FUELMATE LTD,A0090265,10/05/2022,AAS0326442,63.75,N,,N,N
Pendle Borough Council,Financial Services,Transport Related Expense,Diesel Oil,3202,FUELMATE LTD,A0090265,24/05/2022,AAS0326444,65.83,N,,N,N
Pendle Borough Council,Financial Services,Transport Related Expense,Diesel Oil,3202,FUELMATE LTD,A0090265,31/05/2022,AAS0326445,49.93,N,,N,N
Pendle Borough Council,Financial Services,Transport Related Expense,Diesel Oil,3202,FUELMATE LTD,A0090265,24/05/2022,AAS0326444,61.84,N,,N,N
Pendle Borough Council,Financial Services,Transport Related Expense,Diesel Oil,3202,FUELMATE LTD,A0090265,17/05/2022,AAS0326443,66.92,N,,N,N
Pendle Borough Council,Financial Services,Transport Related Expense,Diesel Oil,3202,FUELMATE LTD,A0090265,03/05/2022,AAS0326441,40.4,N,,N,N
Pendle Borough Council,Financial Services,Transport Related Expense,Diesel Oil,3202,FUELMATE LTD,A0090265,17/05/2022,AAS0326443,59.65,N,,N,N
Pendle Borough Council,Financial Services,Transport Related Expense,Diesel Oil,3202,FUELMATE LTD,A0090265,03/05/2022,AAS0326441,43.93,N,,N,N
Pendle Borough Council,Financial Services,Transport Related Expense,Diesel Oil,3202,FUELMATE LTD,A0090265,31/05/2022,AAS0326445,45.84,N,,N,N
Pendle Borough Council,Financial Services,Transport Related Expense,Diesel Oil,3202,FUELMATE LTD,A0090265,31/05/2022,AAS0326445,38.98,N,,N,N
Pendle Borough Council,Financial Services,Transport Related Expense,Diesel Oil,3202,FUELMATE LTD,A0090265,03/05/2022,AAS0326441,41.16,N,,N,N
Pendle Borough Council,Financial Services,Transport Related Expense,Diesel Oil,3202,FUELMATE LTD,A0090265,24/05/2022,AAS0326444,57.85,N,,N,N
Pendle Borough Council,Financial Services,Transport Related Expense,Diesel Oil,3202,FUELMATE LTD,A0090265,03/05/2022,AAS0326441,145.19,N,,N,N
Pendle Borough Council,Democratic & Legal Services,Premises Related Expense,Rents,2301,TRACEY BOLTON,A0090350,12/05/2022,DAL0325950,350,N,,N,N
Pendle Borough Council,Engineering & Special Projects,Premises Related Expense,Grounds : R & M : Day to Day : Routine,2101,GREEN CLEAN RESTORATION,A0090368,12/05/2022,HED0325990,800,N,,N,N
Pendle Borough Council,Operational Services,Premises Related Expense,Water & Sewerage,2501,AQUAM WATER SERVICES LIMITED,A0090390,12/05/2022,OPS0325865,1.49,N,,N,N
Pendle Borough Council,Operational Services,Supplies and Services,Consultants Fees,4401,BETTS GEO ENVIRONMENTAL LIMITED,A0090455,26/05/2022,OPS0326210,1115,N,,N,N
Pendle Borough Council,Democratic & Legal Services,Premises Related Expense,Rents,2301,ST JOHN WITH ST PHILIP PCC,A0090537,12/05/2022,DAL0325956,560,N,,N,N
Pendle Borough Council,Engineering & Special Projects,Supplies and Services,Miscellaneous : Other,4707,IDOX SOFTWARE LIMITED,A0090564,26/05/2022,HED0326231,874.46,N,,N,N
Pendle Borough Council,Operational Services,Supplies and Services,Other Expenses,4705,BLACKBURN SKIPS LIMITED,A0090621,26/05/2022,OPS0326202,100,N,,N,N
Pendle Borough Council,Revenues Services,Supplies and Services,Consultants Fees,4401,PS&P LTD,A0090720,12/05/2022,TRE0326023,0.05,N,,N,N
Pendle Borough Council,Revenues Services,Supplies and Services,Consultants Fees,4401,PS&P LTD,A0090720,12/05/2022,TRE0326020,2,N,,N,N
Pendle Borough Council,Revenues Services,Supplies and Services,Consultants Fees,4401,PS&P LTD,A0090720,12/05/2022,TRE0326022,2.48,N,,N,N
Pendle Borough Council,Revenues Services,Supplies and Services,Consultants Fees,4401,PS&P LTD,A0090720,12/05/2022,TRE0326024,12.88,N,,N,N
Pendle Borough Council,Revenues Services,Supplies and Services,Consultants Fees,4401,PS&P LTD,A0090720,12/05/2022,TRE0326025,12.88,N,,N,N
Pendle Borough Council,Revenues Services,Supplies and Services,Consultants Fees,4401,PS&P LTD,A0090720,12/05/2022,TRE0326021,69.88,N,,N,N
Pendle Borough Council,Engineering & Special Projects,Supplies and Services,Grant Funding,4737,TOGETHER HOUSING ASSOCIATION LTD,A0090740,26/05/2022,HED0326227,17359.66,N,,N,N
Pendle Borough Council,Financial Services,Supplies and Services,Grants/Contributions,4739,CYCLING DEVELOPMENT PENDLE PARTNERSHIP,A0090830,26/05/2022,AAS0326269,1566.88,N,,N,N
Pendle Borough Council,Financial Services,Supplies and Services,Grants/Contributions,4739,CYCLING DEVELOPMENT PENDLE PARTNERSHIP,A0090830,26/05/2022,AAS0326267,4273.08,N,,N,N
Pendle Borough Council,Parks & Recreation Services,Premises Related Expense,Grounds : R & M : Day to Day : Routine,2101,LIGHTHOUSE TAI CHI,A0091248,05/05/2022,PCO0325748,350,N,,N,N
Pendle Borough Council,Parks & Recreation Services,Supplies and Services,EFM : Other Equipment,4003,DEFIBSHOP - IMPERATIVE TRAINING LTD,A0091291,05/05/2022,PCO0325744,350,N,,N,N
Pendle Borough Council,Environmental Health Services,Capital Costs,Ren Grant : 1996 Act,CH22,THE EXCELLENT RAMP SYSTEM LIMITED,A0091363,19/05/2022,ENV0326044,3680,N,,N,N
Pendle Borough Council,Parks & Recreation Services,Premises Related Expense,Grounds : R & M : Day to Day : Routine,2101,CMS TREE SERVICES,A0091372,12/05/2022,PCO0325846,500,N,,N,N
Pendle Borough Council,Operational Services,Transport Related Expense,Diesel Oil,3202,WCF LIMITED,A0091385,12/05/2022,OPS0325859,620,N,,N,N
Pendle Borough Council,Operational Services,,Fees Income : Non-VATable,9302,PERMISERV LIMITED,A0091396,19/05/2022,OPS0326099,765.48,N,,N,N
Pendle Borough Council,Parks & Recreation Services,Premises Related Expense,Grounds : R & M : Day to Day : Routine,2101,MARTINS COUNTRYSIDE CONTRACTING LIMITED,A0091415,19/05/2022,PCO0325974,474,N,,N,N
Pendle Borough Council,Engineering & Special Projects,Supplies and Services,Computer Charges,4509,LOCATA (HOUSING SERVICES) LIMITED,A0091429,12/05/2022,HED0325995,8000,N,,N,N
Pendle Borough Council,Engineering & Special Projects,Supplies and Services,EFM : Other Equipment,4003,STORM TECHNOLOGIES LIMITED,A0091493,26/05/2022,HED0326228,220,N,,N,N
Pendle Borough Council,Engineering & Special Projects,Supplies and Services,EFM : Other Equipment,4003,STORM TECHNOLOGIES LIMITED,A0091493,26/05/2022,HED0326228,42.72,N,,N,N
Pendle Borough Council,Financial Services,Supplies and Services,Subscriptions & Donations,4706,PS RESEARCH LTD,A0091503,12/05/2022,AAS0326037,6500,N,,N,N
Pendle Borough Council,Property Services,Supplies and Services,Publicity & advertisement,4704,WILCOP MEDIA LIMITED,A0091523,26/05/2022,EST0326243,300,N,,N,N
Pendle Borough Council,Planning & Building Control,,Fees Income : Non-VATable,9302,PORTALPLANQUEST LIMITED,A0091554,19/05/2022,PBC0326064,4620,N,,N,N
Pendle Borough Council,Information Services,Capital Costs,Capital : Payments,CD14,SWITCHSHOP LIMITED,A0091555,19/05/2022,ITS0326152,1100,N,,N,N
Pendle Borough Council,Information Services,Capital Costs,Capital : Payments,CD14,SWITCHSHOP LIMITED,A0091555,19/05/2022,ITS0326149,1122.38,N,,N,N
Pendle Borough Council,Information Services,Capital Costs,Capital : Payments,CD14,SWITCHSHOP LIMITED,A0091555,19/05/2022,ITS0326149,9953.3,N,,N,N
Pendle Borough Council,Parks & Recreation Services,Agency Staff,Emp : Basic Wages,1001,NW RECRUITMENT SERVICES LIMITED,A0091588,19/05/2022,PCO0325975,3530.94,N,,N,N
Pendle Borough Council,Parks & Recreation Services,Agency Staff,Emp : Basic Wages,1001,NW RECRUITMENT SERVICES LIMITED,A0091588,05/05/2022,PCO0325750,3690.45,N,,N,N
Pendle Borough Council,Parks & Recreation Services,Agency Staff,Emp : Basic Wages,1001,NW RECRUITMENT SERVICES LIMITED,A0091588,26/05/2022,PCO0326193,4266.03,N,,N,N
Pendle Borough Council,Parks & Recreation Services,Agency Staff,Emp : Basic Wages,1001,NW RECRUITMENT SERVICES LIMITED,A0091588,12/05/2022,PCO0325854,4908.91,N,,N,N
Pendle Borough Council,Operational Services,Agency Staff,Emp : Agency Wages,1004,NW RECRUITMENT SERVICES LIMITED,A0091588,12/05/2022,OPS0325824,3077.27,N,,N,N
Pendle Borough Council,Operational Services,Agency Staff,Emp : Agency Wages,1004,NW RECRUITMENT SERVICES LIMITED,A0091588,12/05/2022,OPS0325824,1154.89,N,,N,N
Pendle Borough Council,Operational Services,Agency Staff,Emp : Agency Wages,1004,NW RECRUITMENT SERVICES LIMITED,A0091588,12/05/2022,OPS0325824,766.52,N,,N,N
Pendle Borough Council,Parks & Recreation Services,Agency Staff,Emp : Salaries & Wages,1020,NW RECRUITMENT SERVICES LIMITED,A0091588,05/05/2022,PCO0325796,159,N,,N,N
Pendle Borough Council,Parks & Recreation Services,Agency Staff,Emp : Salaries & Wages,1020,NW RECRUITMENT SERVICES LIMITED,A0091588,26/05/2022,PCO0326192,178.88,N,,N,N
Pendle Borough Council,Parks & Recreation Services,Agency Staff,Emp : Salaries & Wages,1020,NW RECRUITMENT SERVICES LIMITED,A0091588,12/05/2022,PCO0325853,192.13,N,,N,N
Pendle Borough Council,Parks & Recreation Services,Agency Staff,Emp : Salaries & Wages,1020,NW RECRUITMENT SERVICES LIMITED,A0091588,05/05/2022,PCO0325749,364.38,N,,N,N
Pendle Borough Council,Parks & Recreation Services,Premises Related Expense,Bldgs : R & M : Day To Day,2001,NW RECRUITMENT SERVICES LIMITED,A0091588,05/05/2022,PCO0325796,159,N,,N,N
Pendle Borough Council,Parks & Recreation Services,Premises Related Expense,Bldgs : R & M : Day To Day,2001,NW RECRUITMENT SERVICES LIMITED,A0091588,26/05/2022,PCO0326191,241.81,N,,N,N
Pendle Borough Council,Parks & Recreation Services,Supplies and Services,EFM : Other Equipment,4003,NW RECRUITMENT SERVICES LIMITED,A0091588,05/05/2022,PCO0325750,285.9,N,,N,N
Pendle Borough Council,Parks & Recreation Services,Supplies and Services,EFM : Other Equipment,4003,NW RECRUITMENT SERVICES LIMITED,A0091588,26/05/2022,PCO0326193,308.25,N,,N,N
Pendle Borough Council,Parks & Recreation Services,Supplies and Services,EFM : Other Equipment,4003,NW RECRUITMENT SERVICES LIMITED,A0091588,19/05/2022,PCO0325975,376.75,N,,N,N
Pendle Borough Council,Parks & Recreation Services,Supplies and Services,EFM : Other Equipment,4003,NW RECRUITMENT SERVICES LIMITED,A0091588,12/05/2022,PCO0325854,494.55,N,,N,N
Pendle Borough Council,Operational Services,Transport Related Expense,Tprt : Annual Hire Charge,3601,GO PLANT FLEET SERVICES LIMITED,A0091600,12/05/2022,OPS0325928,3540.62,N,,N,N
Pendle Borough Council,Operational Services,Transport Related Expense,Tprt : Annual Hire Charge,3601,GO PLANT FLEET SERVICES LIMITED,A0091600,12/05/2022,OPS0325928,3540.62,N,,N,N
Pendle Borough Council,Operational Services,Transport Related Expense,Tprt : Annual Hire Charge,3601,GO PLANT FLEET SERVICES LIMITED,A0091600,12/05/2022,OPS0325928,3540.62,N,,N,N
Pendle Borough Council,Operational Services,Transport Related Expense,Tprt : Annual Hire Charge,3601,GO PLANT FLEET SERVICES LIMITED,A0091600,12/05/2022,OPS0325928,3540.62,N,,N,N
Pendle Borough Council,Operational Services,Transport Related Expense,Tprt : Annual Hire Charge,3601,GO PLANT FLEET SERVICES LIMITED,A0091600,12/05/2022,OPS0325928,3540.62,N,,N,N
Pendle Borough Council,Operational Services,Transport Related Expense,Tprt : Annual Hire Charge,3601,GO PLANT FLEET SERVICES LIMITED,A0091600,12/05/2022,OPS0325928,3344.64,N,,N,N
Pendle Borough Council,Operational Services,Transport Related Expense,Tprt : Annual Hire Charge,3601,GO PLANT FLEET SERVICES LIMITED,A0091600,12/05/2022,OPS0325928,3540.62,N,,N,N
Pendle Borough Council,Operational Services,Transport Related Expense,Tprt : Annual Hire Charge,3601,GO PLANT FLEET SERVICES LIMITED,A0091600,12/05/2022,OPS0325928,3540.62,N,,N,N
Pendle Borough Council,Operational Services,Transport Related Expense,Tprt : Annual Hire Charge,3601,GO PLANT FLEET SERVICES LIMITED,A0091600,12/05/2022,OPS0325928,3549.74,N,,N,N
Pendle Borough Council,Operational Services,Transport Related Expense,Tprt : Annual Hire Charge,3601,GO PLANT FLEET SERVICES LIMITED,A0091600,12/05/2022,OPS0325928,3549.74,N,,N,N
Pendle Borough Council,Operational Services,Transport Related Expense,Tprt : Annual Hire Charge,3601,GO PLANT FLEET SERVICES LIMITED,A0091600,12/05/2022,OPS0325928,3549.74,N,,N,N
Pendle Borough Council,Operational Services,Transport Related Expense,Tprt : Annual Hire Charge,3601,GO PLANT FLEET SERVICES LIMITED,A0091600,12/05/2022,OPS0325928,3497.07,N,,N,N
Pendle Borough Council,Operational Services,Transport Related Expense,Tprt : Annual Hire Charge,3601,GO PLANT FLEET SERVICES LIMITED,A0091600,12/05/2022,OPS0325928,3393,N,,N,N
Pendle Borough Council,Operational Services,Transport Related Expense,Tprt : Annual Hire Charge,3601,GO PLANT FLEET SERVICES LIMITED,A0091600,12/05/2022,OPS0325928,2654.17,N,,N,N
Pendle Borough Council,Operational Services,Transport Related Expense,Tprt : Annual Hire Charge,3601,GO PLANT FLEET SERVICES LIMITED,A0091600,12/05/2022,OPS0325928,1981.53,N,,N,N
Pendle Borough Council,Operational Services,Transport Related Expense,Tprt : Annual Hire Charge,3601,GO PLANT FLEET SERVICES LIMITED,A0091600,12/05/2022,OPS0325928,1981.53,N,,N,N
Pendle Borough Council,Operational Services,Transport Related Expense,Tprt : Annual Hire Charge,3601,GO PLANT FLEET SERVICES LIMITED,A0091600,12/05/2022,OPS0325928,1981.53,N,,N,N
Pendle Borough Council,Operational Services,Transport Related Expense,Tprt : Annual Hire Charge,3601,GO PLANT FLEET SERVICES LIMITED,A0091600,12/05/2022,OPS0325928,1981.53,N,,N,N
Pendle Borough Council,Operational Services,Transport Related Expense,Tprt : Annual Hire Charge,3601,GO PLANT FLEET SERVICES LIMITED,A0091600,12/05/2022,OPS0325928,1981.53,N,,N,N
Pendle Borough Council,Operational Services,Transport Related Expense,Tprt : Annual Hire Charge,3601,GO PLANT FLEET SERVICES LIMITED,A0091600,12/05/2022,OPS0325928,509.54,N,,N,N
Pendle Borough Council,Operational Services,Transport Related Expense,Tprt : Annual Hire Charge,3601,GO PLANT FLEET SERVICES LIMITED,A0091600,12/05/2022,OPS0325928,509.54,N,,N,N
Pendle Borough Council,Operational Services,Transport Related Expense,Tprt : Annual Hire Charge,3601,GO PLANT FLEET SERVICES LIMITED,A0091600,12/05/2022,OPS0325928,598.81,N,,N,N
Pendle Borough Council,Operational Services,Transport Related Expense,Tprt : Annual Hire Charge,3601,GO PLANT FLEET SERVICES LIMITED,A0091600,12/05/2022,OPS0325928,650,N,,N,N
Pendle Borough Council,Operational Services,Transport Related Expense,Tprt : Annual Hire Charge,3601,GO PLANT FLEET SERVICES LIMITED,A0091600,12/05/2022,OPS0325928,598.81,N,,N,N
Pendle Borough Council,Operational Services,Transport Related Expense,Tprt : Annual Hire Charge,3601,GO PLANT FLEET SERVICES LIMITED,A0091600,12/05/2022,OPS0325928,598.81,N,,N,N
Pendle Borough Council,Operational Services,Transport Related Expense,Tprt : Annual Hire Charge,3601,GO PLANT FLEET SERVICES LIMITED,A0091600,12/05/2022,OPS0325928,650,N,,N,N
Pendle Borough Council,Operational Services,Transport Related Expense,Tprt : Annual Hire Charge,3601,GO PLANT FLEET SERVICES LIMITED,A0091600,12/05/2022,OPS0325928,598.81,N,,N,N
Pendle Borough Council,Operational Services,Transport Related Expense,Tprt : Annual Hire Charge,3601,GO PLANT FLEET SERVICES LIMITED,A0091600,12/05/2022,OPS0325928,239.53,N,,N,N
Pendle Borough Council,Operational Services,Transport Related Expense,Tprt : Annual Hire Charge,3601,GO PLANT FLEET SERVICES LIMITED,A0091600,12/05/2022,OPS0325928,239.53,N,,N,N
Pendle Borough Council,Operational Services,Transport Related Expense,Tprt : Annual Hire Charge,3601,GO PLANT FLEET SERVICES LIMITED,A0091600,12/05/2022,OPS0325928,239.53,N,,N,N
Pendle Borough Council,Operational Services,Transport Related Expense,Tprt : Annual Hire Charge,3601,GO PLANT FLEET SERVICES LIMITED,A0091600,12/05/2022,OPS0325928,239.53,N,,N,N
Pendle Borough Council,Operational Services,Transport Related Expense,Tprt : Annual Hire Charge,3601,GO PLANT FLEET SERVICES LIMITED,A0091600,12/05/2022,OPS0325928,239.53,N,,N,N
Pendle Borough Council,Operational Services,Transport Related Expense,Tprt : Annual Hire Charge,3601,GO PLANT FLEET SERVICES LIMITED,A0091600,12/05/2022,OPS0325928,239.53,N,,N,N
Pendle Borough Council,Operational Services,Transport Related Expense,Tprt : Annual Hire Charge,3601,GO PLANT FLEET SERVICES LIMITED,A0091600,12/05/2022,OPS0325928,239.53,N,,N,N
Pendle Borough Council,Operational Services,Transport Related Expense,Tprt : Annual Hire Charge,3601,GO PLANT FLEET SERVICES LIMITED,A0091600,12/05/2022,OPS0325928,339.69,N,,N,N
Pendle Borough Council,Operational Services,Transport Related Expense,Tprt : Annual Hire Charge,3601,GO PLANT FLEET SERVICES LIMITED,A0091600,12/05/2022,OPS0325928,592.28,N,,N,N
Pendle Borough Council,Operational Services,Transport Related Expense,Tprt : Annual Hire Charge,3601,GO PLANT FLEET SERVICES LIMITED,A0091600,12/05/2022,OPS0325928,592.28,N,,N,N
Pendle Borough Council,Operational Services,Transport Related Expense,Tprt : Annual Hire Charge,3601,GO PLANT FLEET SERVICES LIMITED,A0091600,12/05/2022,OPS0325928,592.28,N,,N,N
Pendle Borough Council,Operational Services,Transport Related Expense,Tprt : Annual Hire Charge,3601,GO PLANT FLEET SERVICES LIMITED,A0091600,12/05/2022,OPS0325928,592.28,N,,N,N
Pendle Borough Council,Operational Services,Transport Related Expense,Tprt : Annual Hire Charge,3601,GO PLANT FLEET SERVICES LIMITED,A0091600,12/05/2022,OPS0325928,592.28,N,,N,N
Pendle Borough Council,Operational Services,Transport Related Expense,Tprt : Annual Hire Charge,3601,GO PLANT FLEET SERVICES LIMITED,A0091600,12/05/2022,OPS0325928,535.67,N,,N,N
Pendle Borough Council,Operational Services,Transport Related Expense,Tprt : Annual Hire Charge,3601,GO PLANT FLEET SERVICES LIMITED,A0091600,12/05/2022,OPS0325928,239.53,N,,N,N
Pendle Borough Council,Operational Services,Transport Related Expense,Tprt : Annual Hire Charge,3601,GO PLANT FLEET SERVICES LIMITED,A0091600,12/05/2022,OPS0325928,496.4,N,,N,N
Pendle Borough Council,Operational Services,Transport Related Expense,Tprt : Annual Hire Charge,3601,GO PLANT FLEET SERVICES LIMITED,A0091600,12/05/2022,OPS0325928,496.4,N,,N,N
Pendle Borough Council,Operational Services,Supplies and Services,Protective Clothing,4201,GO PLANT FLEET SERVICES LIMITED,A0091600,12/05/2022,OPS0325838,130,N,,N,N
Pendle Borough Council,Operational Services,Supplies and Services,Protective Clothing,4201,GO PLANT FLEET SERVICES LIMITED,A0091600,12/05/2022,OPS0325838,428.55,N,,N,N
Pendle Borough Council,Operational Services,Supplies and Services,Protective Clothing,4201,GO PLANT FLEET SERVICES LIMITED,A0091600,12/05/2022,OPS0325869,857.1,N,,N,N
Pendle Borough Council,Operational Services,Supplies and Services,Protective Clothing,4201,GO PLANT FLEET SERVICES LIMITED,A0091600,12/05/2022,OPS0325839,885.67,N,,N,N
Pendle Borough Council,Engineering & Special Projects,Premises Related Expense,Bldgs : R & M : Day To Day,2001,A&G LANDSCAPES & GROUNDWORKS LIMITED,A0091675,12/05/2022,HED0325983,35,N,,N,N
Pendle Borough Council,Engineering & Special Projects,Premises Related Expense,Bldgs : R & M : Day To Day,2001,A&G LANDSCAPES & GROUNDWORKS LIMITED,A0091675,12/05/2022,HED0325983,100,N,,N,N
Pendle Borough Council,Engineering & Special Projects,Premises Related Expense,Grounds : R & M : Day to Day : Routine,2101,A&G LANDSCAPES & GROUNDWORKS LIMITED,A0091675,12/05/2022,HED0325984,78,N,,N,N
Pendle Borough Council,Engineering & Special Projects,Premises Related Expense,Grounds : R & M : Day to Day : Routine,2101,A&G LANDSCAPES & GROUNDWORKS LIMITED,A0091675,12/05/2022,HED0325984,150,N,,N,N
Pendle Borough Council,Engineering & Special Projects,Premises Related Expense,Grounds : R & M : Day to Day : Routine,2101,A&G LANDSCAPES & GROUNDWORKS LIMITED,A0091675,12/05/2022,HED0325994,1000,N,,N,N
Pendle Borough Council,Engineering & Special Projects,Premises Related Expense,Grounds : R & M : Day to Day : Routine,2101,A&G LANDSCAPES & GROUNDWORKS LIMITED,A0091675,12/05/2022,HED0325994,8318.55,N,,N,N
Pendle Borough Council,Engineering & Special Projects,Premises Related Expense,Grounds : R & M : Day to Day : Routine,2101,A&G LANDSCAPES & GROUNDWORKS LIMITED,A0091675,05/05/2022,HED0325784,250,N,,N,N
Pendle Borough Council,Engineering & Special Projects,Premises Related Expense,Grounds : R & M : Day to Day : Routine,2101,A&G LANDSCAPES & GROUNDWORKS LIMITED,A0091675,05/05/2022,HED0325784,315,N,,N,N
Pendle Borough Council,Engineering & Special Projects,Supplies and Services,Other Expenses,4705,A&G LANDSCAPES & GROUNDWORKS LIMITED,A0091675,19/05/2022,HED0326141,500,N,,N,N
Pendle Borough Council,Engineering & Special Projects,Supplies and Services,Other Expenses,4705,A&G LANDSCAPES & GROUNDWORKS LIMITED,A0091675,19/05/2022,HED0326141,1700,N,,N,N
Pendle Borough Council,Engineering & Special Projects,Capital Costs,Capital : Payments,CD14,A&G LANDSCAPES & GROUNDWORKS LIMITED,A0091675,05/05/2022,HED0325783,510,N,,N,N
Pendle Borough Council,Financial Services,Capital Costs,Capital : Payments,cd14,A&G LANDSCAPES & GROUNDWORKS LIMITED,A0091675,05/05/2022,AAS4006573,-63207.62,N,,N,N
Pendle Borough Council,Financial Services,Capital Costs,Capital : Payments,cd14,A&G LANDSCAPES & GROUNDWORKS LIMITED,A0091675,05/05/2022,AAS4006573,-1000,N,,N,N
Pendle Borough Council,Financial Services,Capital Costs,Capital : Payments,CD14,A&G LANDSCAPES & GROUNDWORKS LIMITED,A0091675,05/05/2022,AAS0325805,1000,N,,N,N
Pendle Borough Council,Financial Services,Capital Costs,Capital : Payments,CD14,A&G LANDSCAPES & GROUNDWORKS LIMITED,A0091675,05/05/2022,AAS0325805,63207.62,N,,N,N
Pendle Borough Council,Engineering & Special Projects,Capital Costs,Capital : Payments,CD14,A&G LANDSCAPES & GROUNDWORKS LIMITED,A0091675,05/05/2022,HED0325782,100,N,,N,N
Pendle Borough Council,Engineering & Special Projects,Capital Costs,Capital : Payments,CD14,A&G LANDSCAPES & GROUNDWORKS LIMITED,A0091675,05/05/2022,HED0325782,650,N,,N,N
Pendle Borough Council,Democratic & Legal Services,Supplies and Services,Printing & Stationery,4301,SCARBOROUGH BOROUGH COUNCIL,A0091694,26/05/2022,DAL0326206,11.5,N,,N,N
Pendle Borough Council,Democratic & Legal Services,Supplies and Services,Printing & Stationery,4301,SCARBOROUGH BOROUGH COUNCIL,A0091694,26/05/2022,DAL0326206,63,N,,N,N
Pendle Borough Council,Environmental Health Services,Capital Costs,Ren Grant : 1996 Act,CH22,BRYAN LEE BUILDING CONTRACTORS LIMITED,A0091749,19/05/2022,ENV0326041,5480.13,N,,N,N
Pendle Borough Council,Environmental Health Services,Agency Staff,Emp : Agency Wages,1004,THE OYSTER PARTNERSHIP LIMITED,A0091781,05/05/2022,ENV0325725,405.43,N,,N,N
Pendle Borough Council,Environmental Health Services,Agency Staff,Emp : Agency Wages,1004,THE OYSTER PARTNERSHIP LIMITED,A0091781,12/05/2022,ENV0325832,544.75,N,,N,N
Pendle Borough Council,Environmental Health Services,Agency Staff,Emp : Agency Wages,1004,THE OYSTER PARTNERSHIP LIMITED,A0091781,26/05/2022,ENV0326171,684.06,N,,N,N
Pendle Borough Council,Environmental Health Services,Agency Staff,Emp : Agency Wages,1004,THE OYSTER PARTNERSHIP LIMITED,A0091781,19/05/2022,ENV0326075,731.88,N,,N,N
Pendle Borough Council,Environmental Health Services,Agency Staff,Emp : Agency Wages,1004,THE OYSTER PARTNERSHIP LIMITED,A0091781,05/05/2022,ENV0325727,1008,N,,N,N
Pendle Borough Council,Environmental Health Services,Agency Staff,Emp : Agency Wages,1004,THE OYSTER PARTNERSHIP LIMITED,A0091781,05/05/2022,ENV0325726,1253.24,N,,N,N
Pendle Borough Council,Environmental Health Services,Agency Staff,Emp : Agency Wages,1004,THE OYSTER PARTNERSHIP LIMITED,A0091781,12/05/2022,ENV0325834,1260,N,,N,N
Pendle Borough Council,Environmental Health Services,Agency Staff,Emp : Agency Wages,1004,THE OYSTER PARTNERSHIP LIMITED,A0091781,05/05/2022,ENV0325724,1268.46,N,,N,N
Pendle Borough Council,Environmental Health Services,Agency Staff,Emp : Agency Wages,1004,THE OYSTER PARTNERSHIP LIMITED,A0091781,19/05/2022,ENV0326074,1282.55,N,,N,N
Pendle Borough Council,Environmental Health Services,Agency Staff,Emp : Agency Wages,1004,THE OYSTER PARTNERSHIP LIMITED,A0091781,19/05/2022,ENV0326042,1312.2,N,,N,N
Pendle Borough Council,Environmental Health Services,Agency Staff,Emp : Agency Wages,1004,THE OYSTER PARTNERSHIP LIMITED,A0091781,12/05/2022,ENV0325831,1487.16,N,,N,N
Pendle Borough Council,Environmental Health Services,Agency Staff,Emp : Agency Wages,1004,THE OYSTER PARTNERSHIP LIMITED,A0091781,26/05/2022,ENV0326170,1530.9,N,,N,N
Pendle Borough Council,Environmental Health Services,Agency Staff,Emp : Agency Wages,1004,THE OYSTER PARTNERSHIP LIMITED,A0091781,12/05/2022,ENV0325833,1586.13,N,,N,N
Pendle Borough Council,Environmental Health Services,Agency Staff,Emp : Agency Wages,1004,THE OYSTER PARTNERSHIP LIMITED,A0091781,26/05/2022,ENV0326174,1600.21,N,,N,N
Pendle Borough Council,Engineering & Special Projects,Capital Costs,Capital : Payments,CD14,ROUGHLEE BOOTH PARISH COUNCIL,A0091815,26/05/2022,HED0326199,250,N,,N,N
Pendle Borough Council,Environmental Health Services,Agency Staff,Emp : Agency Wages,1004,G2 RECRUITMENT SOLUTIONS,A0091827,05/05/2022,ENV0325734,1080,N,,N,N
Pendle Borough Council,Environmental Health Services,Agency Staff,Emp : Agency Wages,1004,G2 RECRUITMENT SOLUTIONS,A0091827,19/05/2022,ENV0326047,1080,N,,N,N
Pendle Borough Council,Environmental Health Services,Agency Staff,Emp : Agency Wages,1004,G2 RECRUITMENT SOLUTIONS,A0091827,12/05/2022,ENV0325830,1332,N,,N,N
Pendle Borough Council,Environmental Health Services,Agency Staff,Emp : Agency Wages,1004,G2 RECRUITMENT SOLUTIONS,A0091827,26/05/2022,ENV0326173,1332,N,,N,N
Pendle Borough Council,Parks & Recreation Services,Premises Related Expense,#N/A,2106,J RAWSON & SONS,A0091873,05/05/2022,PCO0325641,5500,N,,N,N
Pendle Borough Council,Parks & Recreation Services,Premises Related Expense,#N/A,2106,J RAWSON & SONS,A0091873,05/05/2022,PCO0325642,5500,N,,N,N
Pendle Borough Council,Parks & Recreation Services,Premises Related Expense,#N/A,2106,J RAWSON & SONS,A0091873,05/05/2022,PCO0325643,5500,N,,N,N
Pendle Borough Council,Parks & Recreation Services,Premises Related Expense,#N/A,2106,J RAWSON & SONS,A0091873,05/05/2022,PCO0325644,5500,N,,N,N
Pendle Borough Council,Property Services,Premises Related Expense,Water & Sewerage,2501,BUSINESS STREAM,A0091916,26/05/2022,EST0326245,53.23,N,,N,N
Pendle Borough Council,Property Services,Premises Related Expense,Water & Sewerage,2501,BUSINESS STREAM,A0091916,26/05/2022,EST0326241,26.11,N,,N,N
Pendle Borough Council,Property Services,Premises Related Expense,Water & Sewerage,2501,BUSINESS STREAM,A0091916,26/05/2022,EST0326240,8.5,N,,N,N
Pendle Borough Council,Operational Services,,Stock : Purchases,PJ01,SMI GROUP UK,A0091999,12/05/2022,OPS0325817,74.1,N,,N,N
Pendle Borough Council,Operational Services,,Stock : Purchases,PJ01,SMI GROUP UK,A0091999,12/05/2022,OPS0325817,225.36,N,,N,N
Pendle Borough Council,Operational Services,,Stock : Purchases,PJ01,SMI GROUP UK,A0091999,19/05/2022,OPS0326091,303.29,N,,N,N
Pendle Borough Council,Parks & Recreation Services,Premises Related Expense,Grounds : R & M : Day to Day : Routine,2101,A1 SKIP HIRE LIMITED,A0092012,26/05/2022,PCO0326178,575.62,N,,N,N
Pendle Borough Council,Engineering & Special Projects,Supplies and Services,Planning Appeals,4415,AVALON TOWN PLANNING LTD,A0092245,26/05/2022,HED0326232,1397.75,N,,N,N
Pendle Borough Council,Human Resources,Indirect Employee Expenses,Emp : Medical Expenses,1236,FIONA SHARP PHYSIOTHERAPY,A0092384,19/05/2022,PER0326065,120,N,,N,N
Pendle Borough Council,Human Resources,Indirect Employee Expenses,Emp : Medical Expenses,1236,FIONA SHARP PHYSIOTHERAPY,A0092384,05/05/2022,PER0325763,168,N,,N,N
Pendle Borough Council,Financial Services,Agency Costs,#N/A,5304,LIVERPOOL UNIVERSITY HOSPITALS NHS FOUNDATIONTRUST,A0092555,12/05/2022,AAS0326036,1725,N,,N,N
Pendle Borough Council,Financial Services,Agency Costs,#N/A,5304,LIVERPOOL UNIVERSITY HOSPITALS NHS FOUNDATIONTRUST,A0092555,12/05/2022,AAS0326035,20700,N,,N,N
Pendle Borough Council,Engineering & Special Projects,Capital Costs,Capital : Payments,CD14,EASI BLIND LTD,A0094179,09/05/2022,HED0325657,4166.67,N,,N,N
Pendle Borough Council,Revenues Services,Supplies and Services,Consultants Fees,4401,MARSTON (HOLDINGS) LIMITED,A0094273,26/05/2022,TRE0326272,3.6,N,,N,N
Pendle Borough Council,Revenues Services,Supplies and Services,Consultants Fees,4401,MARSTON (HOLDINGS) LIMITED,A0094273,26/05/2022,TRE0326274,3.6,N,,N,N
Pendle Borough Council,Revenues Services,Supplies and Services,Consultants Fees,4401,MARSTON (HOLDINGS) LIMITED,A0094273,26/05/2022,TRE0326271,39.11,N,,N,N
Pendle Borough Council,Revenues Services,Supplies and Services,Consultants Fees,4401,MARSTON (HOLDINGS) LIMITED,A0094273,26/05/2022,TRE0326273,47.03,N,,N,N
Pendle Borough Council,Information Services,Supplies and Services,Seminars etc All Costs,4601,COMPLETE IT SYSTEMS LIMITED,A0094309,19/05/2022,ITS0326151,30,N,,N,N
Pendle Borough Council,Information Services,Supplies and Services,Seminars etc All Costs,4601,COMPLETE IT SYSTEMS LIMITED,A0094309,19/05/2022,ITS0326151,33,N,,N,N
Pendle Borough Council,Information Services,Capital Costs,Capital : Payments,cd14,COMPLETE IT SYSTEMS LIMITED,A0094309,19/05/2022,ITS0326150,99,N,,N,N
Pendle Borough Council,Information Services,Capital Costs,Capital : Payments,cd14,COMPLETE IT SYSTEMS LIMITED,A0094309,19/05/2022,ITS0326147,171,N,,N,N
Pendle Borough Council,Planning & Building Control,Capital Costs,Capital : Payments,cd14,MOHAMMED ISMAIL,A0094414,26/05/2022,PBC0326266,2250,N,,N,N
Pendle Borough Council,Financial Services,Supplies and Services,Consultants Fees,4401,CASTLEFIELD RECRUITMENT LIMITED,A0094486,05/05/2022,AAS0325789,1113.76,N,,N,N
Pendle Borough Council,Financial Services,Supplies and Services,Consultants Fees,4401,CASTLEFIELD RECRUITMENT LIMITED,A0094486,19/05/2022,AAS0326158,1113.76,N,,N,N
Pendle Borough Council,Financial Services,Supplies and Services,Consultants Fees,4401,CASTLEFIELD RECRUITMENT LIMITED,A0094486,12/05/2022,AAS0326029,1670.64,N,,N,N
Pendle Borough Council,Financial Services,Supplies and Services,Consultants Fees,4401,CASTLEFIELD RECRUITMENT LIMITED,A0094486,26/05/2022,AAS0326270,1670.64,N,,N,N
Pendle Borough Council,Financial Services,Supplies and Services,Consultants Fees,4401,CASTLEFIELD RECRUITMENT LIMITED,A0094486,12/05/2022,AAS0326028,2088.3,N,,N,N
Pendle Borough Council,Financial Services,Supplies and Services,Consultants Fees,4401,CASTLEFIELD RECRUITMENT LIMITED,A0094486,12/05/2022,AAS0326027,2200,N,,N,N
Pendle Borough Council,Engineering & Special Projects,Supplies and Services,Other Expenses,4705,EUROLOOS LIMITED,A0094490,19/05/2022,HED0326068,332.13,N,,N,N
Pendle Borough Council,Engineering & Special Projects,Supplies and Services,Other Expenses,4705,EUROLOOS LIMITED,A0094490,19/05/2022,HED0326069,332.13,N,,N,N
Pendle Borough Council,Engineering & Special Projects,Supplies and Services,Other Expenses,4705,EUROLOOS LIMITED,A0094490,19/05/2022,HED0326070,332.13,N,,N,N
Pendle Borough Council,Engineering & Special Projects,Capital Costs,Capital : Payments,CD14,Urban Fencing Ltd,A0095401,19/05/2022,HED0326139,55000,N,,N,N
Pendle Borough Council,Democratic & Legal Services,Premises Related Expense,Rents,2301,BRADLEY BIG LOCAL COMMUNITY LAND TRUST LIMITED,A0095541,12/05/2022,DAL0325932,100,N,,N,N
Pendle Borough Council,Parks & Recreation Services,Premises Related Expense,Grounds : R & M : Day to Day : Routine,2101,MERRITT & FRYERS LTD,A0095575,05/05/2022,PCO0325795,0.6,N,,N,N
Pendle Borough Council,Operational Services,Premises Related Expense,Grounds : R & M : Day to Day : Routine,2101,M W ENVIRONMENTAL,A0095862,19/05/2022,OPS0326086,200,N,,N,N
Pendle Borough Council,Parks & Recreation Services,Premises Related Expense,Grounds : R & M : Day to Day : Routine,2101,M W ENVIRONMENTAL,A0095862,19/05/2022,PCO0326080,1802.2,N,,N,N
Pendle Borough Council,Financial Services,Capital Costs,Capital: Design Fees,CD53,COLNE DRAMATIC SOCIETY,A0095863,19/05/2022,AAS0326162,4440.2,N,,N,N
Pendle Borough Council,Financial Services,Capital Costs,Miscellaneous,CE4F,COLNE DRAMATIC SOCIETY,A0095863,19/05/2022,AAS0326162,230,N,,N,N
Pendle Borough Council,Human Resources,Supplies and Services,Seminars etc All Costs,4601,INSTEP UK LTD,A0096267,26/05/2022,PER0326223,14.03,N,,N,N
Pendle Borough Council,Engineering & Special Projects,Transfer Payments,Accommodation ,6103,REGENT GUEST HOUSE,A0096417,19/05/2022,HED0326057,420,N,,N,N
Pendle Borough Council,Engineering & Special Projects,Transfer Payments,Accommodation ,6103,REGENT GUEST HOUSE,A0096417,19/05/2022,HED0326071,660,N,,N,N
Pendle Borough Council,Engineering & Special Projects,Transfer Payments,Accommodation ,6103,REGENT GUEST HOUSE,A0096417,19/05/2022,HED0326058,720,N,,N,N
Pendle Borough Council,Engineering & Special Projects,Transfer Payments,Accommodation ,6103,REGENT GUEST HOUSE,A0096417,19/05/2022,HED0326063,2040,N,,N,N
Pendle Borough Council,Engineering & Special Projects,Premises Related Expense,Grounds : R & M : Day to Day : Routine,2101,CHORLEY`S ANGELS COMMUNITY GROUP,A0096425,19/05/2022,HED0326140,250,N,,N,N
Pendle Borough Council,Property Services,Premises Related Expense,Gas,2202,E.ON NEXT ENERGY LIMITED,A0096428,26/05/2022,EST0326254,10.2,N,,N,N
Pendle Borough Council,Property Services,Premises Related Expense,Electricity,2203,E.ON NEXT ENERGY LIMITED,A0096428,26/05/2022,EST0326253,9.86,N,,N,N
Pendle Borough Council,Property Services,Premises Related Expense,Electricity,2203,E.ON NEXT ENERGY LIMITED,A0096428,26/05/2022,EST0326255,19.58,N,,N,N
Pendle Borough Council,Property Services,Premises Related Expense,Electricity,2203,E.ON NEXT ENERGY LIMITED,A0096428,26/05/2022,EST0326262,1.46,N,,N,N
Pendle Borough Council,Property Services,Premises Related Expense,Electricity,2203,E.ON NEXT ENERGY LIMITED,A0096428,26/05/2022,EST0326247,4.89,N,,N,N
Pendle Borough Council,Property Services,Premises Related Expense,Electricity,2203,E.ON NEXT ENERGY LIMITED,A0096428,12/05/2022,EST0326001,47.32,N,,N,N
Pendle Borough Council,Property Services,Premises Related Expense,Electricity,2203,E.ON NEXT ENERGY LIMITED,A0096428,26/05/2022,EST0326258,591.69,N,,N,N
Pendle Borough Council,Property Services,Premises Related Expense,Electricity,2203,E.ON NEXT ENERGY LIMITED,A0096428,12/05/2022,EST0326006,4.34,N,,N,N
Pendle Borough Council,Property Services,Premises Related Expense,Electricity,2203,E.ON NEXT ENERGY LIMITED,A0096428,12/05/2022,EST0326010,4.34,N,,N,N
Pendle Borough Council,Property Services,Premises Related Expense,Electricity,2203,E.ON NEXT ENERGY LIMITED,A0096428,12/05/2022,EST0326011,4.34,N,,N,N
Pendle Borough Council,Human Resources,Supplies and Services,Seminars etc All Costs,4601,TRS TRAINING LTD,A0096474,05/05/2022,PER0325761,75.04,N,,N,N
Pendle Borough Council,Parks & Recreation Services,Transport Related Expense,Tprt : Repairs : General,3105,D&J MACHINERY,A0096482,19/05/2022,PCO0325972,82.62,N,,N,N
Pendle Borough Council,Parks & Recreation Services,Supplies and Services,Other Expenses,4705,JCB PRICE & SON LTD,A0096491,05/05/2022,PCO0325788,4200,N,,N,N
Pendle Borough Council,Parks & Recreation Services,Supplies and Services,Other Expenses,4705,JCB PRICE & SON LTD,A0096491,05/05/2022,PCO0325640,6600,N,,N,N
Pendle Borough Council,Parks & Recreation Services,Supplies and Services,Other Expenses,4705,JCB PRICE & SON LTD,A0096491,05/05/2022,PCO0325787,6600,N,,N,N
Pendle Borough Council,Engineering & Special Projects,Supplies and Services,Other Expenses,4705,WHITEFIELDS ESTATE AGENTS LTD,A0096498,26/05/2022,HED0326225,700,N,,N,N
Pendle Borough Council,Economic Development & Tourism,Supplies and Services,Consultants Fees,4401,DWF LAW LLP,A0096499,19/05/2022,REG0326083,1500,N,,N,N
Pendle Borough Council,Parks & Recreation Services,Premises Related Expense,Grounds : R & M : Day to Day : Routine,2101,BANNISTER HALL LIMITED,A0096507,19/05/2022,PCO0325969,166.2,N,,N,N
Pendle Borough Council,Parks & Recreation Services,Transport Related Expense,Tprt : Repairs : General,3105,BENTLEY YORKSHIRE LTD T/A KEIGHLEY FORD,A0096513,12/05/2022,PCO0325857,1987.1,N,,N,N
Pendle Borough Council,Parks & Recreation Services,Transport Related Expense,Tprt : Repairs : General,3105,AC PLANT GLAZING LTD,A0096522,26/05/2022,PCO0326179,148,N,,N,N
Pendle Borough Council,Property Services,Premises Related Expense,Gas,2202,YU ENERGY,A0096523,12/05/2022,EST4006576,-108.19,N,,N,N
Pendle Borough Council,Property Services,Premises Related Expense,Gas,2202,YU ENERGY,A0096523,12/05/2022,EST4006577,-104.7,N,,N,N
Pendle Borough Council,Property Services,Premises Related Expense,Gas,2202,YU ENERGY,A0096523,12/05/2022,EST4006575,-97.72,N,,N,N
Pendle Borough Council,Property Services,Premises Related Expense,Gas,2202,YU ENERGY,A0096523,12/05/2022,EST0325998,592.36,N,,N,N
Pendle Borough Council,Engineering & Special Projects,Supplies and Services,Consultants Fees,4401,CIVIC ENGINEERS,A0096534,05/05/2022,HED0325781,2000,N,,N,N
Pendle Borough Council,Parks & Recreation Services,Supplies and Services,Subscriptions & Donations,4706,HORNBECK LTD t/a LANDMARK,A0096544,05/05/2022,PCO0325746,25,N,,N,N
Pendle Borough Council,Parks & Recreation Services,Supplies and Services,Subscriptions & Donations,4706,HORNBECK LTD t/a LANDMARK,A0096544,05/05/2022,PCO0325747,296,N,,N,N
Pendle Borough Council,Financial Services,Supplies and Services,Subscriptions & Donations,4706,NOMINET UK,A0096546,26/05/2022,AAS0326268,765.94,N,,N,N
Pendle Borough Council,Engineering & Special Projects,Premises Related Expense,Bldgs : R & M : Day To Day,2001,BM Complete Developments Ltd,A0096572,12/05/2022,HED0325985,218.25,N,,N,N
Pendle Borough Council,Engineering & Special Projects,Premises Related Expense,Grounds : R & M : Day to Day : Routine,2101,BM Complete Developments Ltd,A0096572,26/05/2022,HED0326236,435.72,N,,N,N
Pendle Borough Council,Directorate,Supplies and Services,Seminars etc All Costs,4601,JJG CONSULTANCY & EXECUTIVE COACHING SERVICES LTD,A0096573,05/05/2022,MAN0325785,200,N,,N,N
Pendle Borough Council,Parks & Recreation Services,Premises Related Expense,Grounds : R & M : Day to Day : Routine,2101,REDACT - PERSONAL DATA,A0096762,05/05/2022,PCO0325793,24.3,N,,N,N
Pendle Borough Council,Parks & Recreation Services,Premises Related Expense,Grounds : R & M : Gds Maint ,2103,COWLING QUANTITY SURVEYING & COMMERCIAL MANAGEMENT,A0096764,12/05/2022,PCO0325847,568.6,N,,N,N
Pendle Borough Council,Parks & Recreation Services,Premises Related Expense,Grounds : R & M : Gds Maint ,2103,COWLING QUANTITY SURVEYING & COMMERCIAL MANAGEMENT,A0096764,12/05/2022,PCO0325847,1734.8,N,,N,N
Pendle Borough Council,Parks & Recreation Services,Premises Related Expense,Grounds : R & M : Gds Maint ,2103,COWLING QUANTITY SURVEYING & COMMERCIAL MANAGEMENT,A0096764,12/05/2022,PCO0325847,2208.8,N,,N,N
Pendle Borough Council,Parks & Recreation Services,Transport Related Expense,Diesel Oil,3202,NWF FUELS,A0096773,12/05/2022,PCO0325856,2840,N,,N,N
Pendle Borough Council,Engineering & Special Projects,Supplies and Services,Consultants Fees,4401,VIVID RESOURCING,A0096778,05/05/2022,HED0325775,930,N,,N,N
Pendle Borough Council,Planning & Building Control,,Other Income : Non-VATable,9303,REDACT - PERSONAL DATA,A0096782,19/05/2022,PBC0326072,66.5,N,,N,N
Pendle Borough Council,Engineering & Special Projects,Premises Related Expense,Grounds : R & M : Day to Day : Routine,2101,REDACT - PERSONAL DATA,A0096783,19/05/2022,HED0326142,115.04,N,,N,N
Pendle Borough Council,Engineering & Special Projects,Capital Costs,Capital : Payments,CD14,XJ ROVER,A0096785,19/05/2022,HED0326136,2932.38,N,,N,N
Pendle Borough Council,Human Resources,,Cash : Payroll Advances,PB03,REDACT - PERSONAL DATA,A0096786,19/05/2022,PER0326163,320,N,,N,N
